Workbook

Sheet Cover Page
D1: Add company logo
N2: Version 24.2a (for incinerators) - 27/11/24
N4: Note that there is another version of this template available for co-incinerators
B8: Add photo
N13: Notes:
N14: This template may require adjustments by individual operators to meet specific reporting requirements as defined in the site Permit(s)
B29: Annual Performance Report 2024
B31: Permit EPR/JP3135DK
B33: Kemsley Generating Station
B35: K3 CHP
B37: enfinium K3 CHP Operations Limited
B39: Year: | C39: 2024
B41: Address: | C41: Barge Way, Sittingbourne, Kent, ME10 2FP
B43: Tel:
B45: Email: | C45: luke.clothier@enfinium.co.uk
B47: Prepared by: | C47: Luke Clothier | F47: Position: | G47: Environmental Officer
B49: Approved by: | C49: Stuart Kirk | F49: Position: | G49: Plant Manager
B51: Version: | C51: 1
B53: Issue Date: | C53: 28/01/2024

Sheet Contents
A1: =+'Cover Page'!$B$29 -> Annual Performance Report 2024 | E1: =+'Cover Page'!$B$33 -> Kemsley Generating Station
A3: Contents
A4: Section | B4: Subject | H4: Page
A5: 1 | B5: Facility Information | H5: 3
A6: 2 | B6: Operational Data | H6: 4
A7: 3 | B7: Operational Summary | H7: 5
A8: 4 | B8: Performance Form 1 | H8: 6
A9: 5 | B9: Energy Form 1 | H9: 7
A10: 6 | B10: Permit Compliance | H10: 8
A11: 7 | B11: Improvements | H11: 9
A12: 8 | B12: Public Liaison | H12: 10
A13: 9 | B13: Carbon dioxide and nitrous oxide emissions | H13: 11
A14: 10 | B14: Residue Quality | H14: 12
A15: 11 | B15: Emissions to Water | H15: 13
A16: 12 | B16: Emissions to Air (periodically monitored) | H16: 14
A17: 13 | B17: Emissions to Air (continuously monitored) | H17: 15
A18: 14 | B18: Hydrogen Chloride emissions | H18: 16
A19: 15 | B19: Sulphur Dioxide emissions | H19: 17
A20: 16 | B20: Oxides of Nitrogen emissions | H20: 18
A21: 17 | B21: Total Organic Carbon emissions | H21: 19
A22: 18 | B22: Particulate Matter emissions | H22: 20
A23: 19 | B23: Carbon Monoxide emissions | H23: 22
A24: 20 | B24: Ammonia emissions | H24: 23
A27: Version Control
A28: Section | B28: Information | H28: Date
A29: All | B29: Final Report Version 1 | H29: 2025-01-28
A35: Distribution
A36: Copy | B36: Name, Role | H36: No.
B37: InstallationsKSLES@environment-agency.gov.uk - Regulator (EA)
B38: John.Tollervey@environment-agency.gov.uk - Senior Technical Specialist (EA)
B39: Stuart.Kirk@enfnium.co.uk Plant manager
B40: Fiona.Gormley@enfinium.co.uk - Quality Manager
B41: Luke.Clothier@enfinium.co.uk - Environmental Officer
B42: Dean.Collier@enfinium.co.uk - operations manager
A45: This report is required under the Industrial Emissions Directive’s Article 55(2) requirements on reporting and public information on waste incineration plants and co-incineration plants, which require the operator to produce an annual report on the functioning and monitoring of the plant and make it available to the public.

Sheet Facility Info
A1: =+'Cover Page'!$B$29 -> Annual Performance Report 2024 | E1: =+'Cover Page'!$B$33 -> Kemsley Generating Station
A3: Plant Description and Design
A5: "The Kemsley Energy Recovery Facility (ERF) forms part of the Kemsley Paper Mill installation comprising of the DS Smith Kemsley Paper Mill and the E.On combined heat and power facility. It is located at grid reference 592170,166640 to the east of Kemsley, 3 km north of Sittingbourne and 2.5 km south east of Iwade. The installation consists of two combustion lines and processes up to 657,000 tonnes of residual waste per annum (tpa); primarily commercial and industrial (C&I) waste and residual Municipal Solid Waste (MSW) which is collected and delivered by external waste management companies. Energy is recovered in the process by utilising the steam generated in the boiler to drive a turbine to generate electricity. Approximately 45MW of electricity can be exported to grid per hour and 55MWth per hour of steam can be supplied to neighbouring businesses (the paper mill when it is running at capacity). Recyclable materials in the form of incinerator bottom ash (IBA) and metals from the IBA are also recovered from the process. The existing permit (Permit number EPR/JP3135DK) allows the facility to accept municipal, industrial and commercial waste and undertake the following activities: • Receipt and storage of waste pending processing; • Electricity and steam generation; and • Disposal of waste arising (incinerator bottom ash (IBA) and air pollution control residues (APCR)."
A20: Summary of Operational Processes and Procedures
A22: "Municipal solid wastes and commercial wastes accepted at the installation are delivered in covered vehicles or containers. All vehicles delivering the waste are weighed in at the weighbridge before entering the Tipping Hall and being allowed to discharge waste. The residual waste is discharged onto the tipping hall floor and pushed into the bunker using mobile plant and is utilised as feedstock for the ERF. The waste in the bunker is mixed with a crane to create a homogenous feedstock and to prevent anaerobic conditions and hence odour. Waste is loaded into the incinerator, using the crane, via the feed hopper. The facility processes waste using air cooled, moving grate technology. The grate is split into 5 zones; zone 1 is the drying zone; 2-3 are the main combustion zones and 4-5 are the burn out zones. Primary and secondary air supply is controlled to ensure good combustion conditions, additional support in combustion is provided through tertiary air injection. A temperature of at least 850°C for at least 2 seconds (T2S) is achieved. After the waste has been burned the remaining unburnt material, called incinerator bottom ash (IBA) is quenched in water. The bottom ash is transported by conveyor to an indoor storage area. The IBA is stored here until it is sent off site to a suitably licensed waste treatment facility for re-processing/recovery. The flue gas is treated within the dry Flue Gas Treatment (FGT) system to reduce the level of pollutants emitted and to comply with the requirements of the Industrial Emissions Directive (IED) and the Environmental Permit. Oxides of Nitrogen (NOx) are abated using dry urea; acid gases such as Hydrogen Chloride (HCl) and Sulphur Dioxins (SO2) are abated using hydrated lime injection. For dioxins and mercury, Powdered Activated Carbon (PAC) abatement is used. Fabric bag filters are utilised for the abatement of particulate matter and also to collect the by-products from both reactions known as Air Pollution Control Residue (APCR) which is transferred to a silo then to a tanker (or sealed bags are sometimes used) for removal from the facility and disposal at a suitably licenced premises. Following clean up, the flue gas is emitted to air through the 90m high stack. The flue gases entering the stack are continuously monitored for HCl, SO2, TOC, CO, NOx, NH3 and Particulates against limits as laid down in the Environmental Permit. The heat from the combustion process is used to turn water into high-pressure steam, that steam then powers a turbine to generate electricity for internal use and for export to the National Grid. The facility also has combined heat and power (CHP) capability and supplies the adjacent DS Smith paper mill with steam. Spent steam from the turbine is converted back to condensate in an air-cooled condenser, which feeds back into the condensate tank. The facility is designed to export approximately 45MW of electricity (permitted electrical generation capacity of 74MWe) to the grid, and 55 MWth of steam (permitted heat export capacity of 204 MWth) to the paper mill when it is running at capacity. The facility is certified to ISO 45001, 9001 and 14001 and operates an accredited Management System housing the processes and procedures to be followed. The facility has procedures in place including emergency procedures, operating instructions, method statements and risk assessments. All health, safety and environmental incidents, events and resulting investigations and actions are managed within the companies EHS reporting system. The facility has a Computer Maintenance Management System (CMMS) in place housing all maintenance tasks and defect reporting. Planned outages take place at specified intervals to allow for boiler cleaning, statutory and essential maintenance to maintain plant reliability and efficiency."

Sheet Operational Data
A1: =+'Cover Page'!$B$29 -> Annual Performance Report 2024 | E1: =+'Cover Page'!$B$33 -> Kemsley Generating Station
A3: Operational Data
A4: Plant Size | B4: 657000 | D4: tonnes pa | E4: 55 | F4: MWth | G4: 45 | H4: MWe
A5: No. of combustion lines | B5: 2 | D5: No. of Turbines: | F5: 1
A7: Waste types received | B7: Unit | C7: Q1 | D7: Q2 | E7: Q3 | F7: Q4 | G7: Year Total | H7: %
A8: Household / Local Authority | B8: tonnes | C8: 73025.51 | D8: 83821.18 | E8: 79125.62 | F8: 99075.452 | G8: =SUM(C8:F8) -> 335047.762 | H8: =IF(G8>0,G8/$G$18,"-") -> 0.5649628599
A9: Commercial & Industrial | C9: 23984.74 | D9: 24134.24 | E9: 26853.76 | F9: 25240.18 | G9: =SUM(C9:F9) -> 100212.92 | H9: 0.168980618
A10: Hazardous | G10: 0 | H10: -
A11: Clinical | G11: 0 | H11: -
A12: Waste wood (biomass) | G12: 0 | H12: -
A13: Refuse Derived Fuel * - H'hold/LA | G13: =SUM(C13:F13) -> 0 | H13: -
A14: Refuse Derived Fuel * - C&I | C14: 45067.9 | D14: 43483.16 | E14: 38405.95 | F14: 30826.18 | G14: 157783.19 | H14: 0.266056522
A15: Other [Please specify] | G15: 0 | H15: -
A16: Other [Please specify] | G16: 0 | H16: -
A17: Other [Please specify] | G17: 0 | H17: -
A18: Total waste received | C18: =SUM(C8:C17) -> 142078.15 | D18: =SUM(D8:D17) -> 151438.58 | E18: =SUM(E8:E17) -> 144385.33 | F18: =SUM(F8:F17) -> 155141.812 | G18: 593043.872
A19: Rejected Waste | G19: =SUM(C19:F19) -> 0 | H19: =IF(G19>0,G19/$G$18,"-") -> -
A20: Unprocessed waste transferred out | G20: =SUM(C20:F20) -> 0 | H20: =IF(G20>0,G20/$G$18,"-") -> -
A21: Total waste combusted ** | C21: 144901 | D21: 149838 | E21: 145079 | F21: 157534 | G21: =SUM(C21:F21) -> 597352
A23: Energy Usage / Export | B23: Unit | C23: Q1 | D23: Q2 | E23: Q3 | F23: Q4 | G23: Year Total | H23: KWh/te
A24: Power Generated | B24: MWh | C24: 94440 | D24: 103858 | E24: 108730 | F24: 108441 | G24: =SUM(C24:F24) -> 415469 | H24: =IF(G24>0,G24*1000/$G$21,"-") -> 695.5178856
A25: Power Exported | C25: 83136 | D25: 91684 | E25: 95974 | F25: 96361 | G25: =SUM(C25:F25) -> 367155 | H25: =IF(G25>0,G25*1000/$G$21,"-") -> 614.6376006
A26: Power Used on site | C26: 11496 | D26: 12309.35791 | E26: 12976.26221 | F26: 12193.87937 | G26: =SUM(C26:F26) -> 48975.49949 | H26: =IF(G26>0,G26*1000/$G$21,"-") -> 81.98767141
A27: Power Imported | C27: 192 | D27: 135 | E27: 220 | F27: 114 | G27: 661 | H27: =IF(G27>0,G27*1000/$G$21,"-") -> 1.106550242
A28: Parasitic Load | B28: % | C28: =IF(C24>0,1-C25/(C24+C27),"-") -> 0.1214811058 | D28: =IF(D24>0,1-D25/(D24+D27),"-") -> 0.118363736 | E28: =IF(E24>0,1-E25/(E24+E27),"-") -> 0.1191005048 | F28: =IF(F24>0,1-F25/(F24+F27),"-") -> 0.1123301552 | G28: =IF(G24>0,1-G25/(G24+G27),"-") -> 0.1176915868
A29: Thermal Energy Produced *** | B29: MWh | C29: 408482 | D29: 420273 | E29: 424203 | F29: 431228 | G29: =SUM(C29:F29) -> 1684186 | H29: =IF(G29>0,G29*1000/$G$21,"-") -> 2819.419706
A30: Thermal Energy Exported *** | C30: 116488 | D30: 109195.8484 | E30: 94324.73307 | F30: 88539.63858 | G30: 408548.2201 | H30: =IF(G30>0,G30*1000/$G$21,"-") -> 683.9321205
A31: R1 value (if applicable) | B31: R1 | G31: 0.96
A33: Waste Disposal & Recovery | B33: Unit | C33: Q1 | D33: Q2 | E33: Q3 | F33: Q4 | G33: Year Total | H33: % inputs
A34: APC Residues - produced | B34: tonnes | C34: 3769 | D34: 3889 | E34: 3792 | F34: 3377 | G34: =SUM(C34:F34) -> 14827 | H34: =IF(G34>0,G34/$G$21,"-") -> 0.02482121094
A35: IBA - produced | C35: 29558 | D35: 31016 | E35: 31296 | F35: 29759 | G35: 121629 | H35: =IF(G35>0,G35/$G$21,"-") -> 0.2036136148
A36: Metals recycling | C36: 392.24 | D36: 372.98 | E36: 330.16 | F36: 252.18 | G36: =SUM(C36:F36) -> 1347.56 | H36: 0.002255889325
A37: Wood | C37: 2.16 | D37: 1.06 | E37: 0.61 | F37: 1.74 | G37: =SUM(C37:F37) -> 5.57 | H37: 9.324485396e-06
A38: Mixed Municipal | C38: 11.13 | D38: 10.64 | E38: 0.83 | F38: 1.59 | G38: 24.19 | H38: 4.04953863e-05
A39: COSHH | C39: - | D39: - | E39: 0.1 | F39: - | G39: 0.1 | H39: 1.674054829e-07
A40: WEEE | C40: - | D40: - | E40: 0.1 | F40: - | G40: 0.1 | H40: 1.674054829e-07
A42: Raw Material Usage | B42: Unit | C42: Q1 | D42: Q2 | E42: Q3 | F42: Q4 | G42: Year Total | H42: kg or Ltr /te
A43: Mains Water | B43: ltrs | C43: 1806000 | D43: 2345000 | E43: 2499000 | F43: 1999000 | G43: =SUM(C43:F43) -> 8649000 | H43: =IF(G43>0,G43/$G$21,"-") -> 14.47890021
A44: Other Water | B44: ltrs | G44: 0 | H44: =IF(G44>0,G44/$G$21,"-") -> -
A45: Ammonia | B45: kgs | G45: 0 | H45: -
A46: Urea | B46: kgs | C46: 199234 | D46: 189578 | E46: 210165 | F46: 228344 | G46: =SUM(C46:F46) -> 827321 | H46: 1.384980715
A47: Activated Carbon | B47: kgs | C47: 54031 | D47: 53930 | E47: 55452 | F47: 55968 | G47: 219381 | H47: 0.3672558224
A48: Lime / hydrated lime | B48: kgs | C48: 1667000 | D48: 1572 | E48: 1606 | F48: 1257 | G48: 1671435 | H48: 2.798073833
A49: Fuel oil | B49: ltrs | C49: 256898 | D49: 303388 | E49: 186075 | F49: 170419 | G49: 916780 | H49: 1.534739986
A50: Gas | B50: cuf | G50: 0
A51: Other | G51: 0
A53: Summary | B53: Line/Unit | C53: Q1 | D53: Q2 | E53: Q3 | F53: Q4 | G53: Year Total | I53: Hrs in year
A54: Availability of waste combustion by line, hrs **** | B54: 1 | C54: 1838 | D54: 1915 | E54: 2032.933333 | F54: 1987.766667 | G54: =SUM(C54:F54) -> 7773.7 | H54: =+G54/$I$54 -> 0.8874086758 | I54: 8760
B55: 2 | C55: 1972.6 | D55: 1961.533333 | E55: 1981.883333 | F55: 2022.25 | G55: 7938.266666 | H55: =+G55/$I$54 -> 0.9061948249
A56: Overall Availability, mean avg. of all lines, hrs | B56: - | G56: =AVERAGE(G54:G55) -> 7855.983333 | H56: 0.8968017503
A57: Hours of turbine operations, hrs | B57: 1 | C57: 2152 | D57: 2116 | E57: 2098 | F57: 2157 | G57: 8523 | H57: 0.9729452055
A58: Hours of heat / steam export | G58: 8295 | H58: =IF(B58>0,#REF!/I54,"n/a") -> n/a
A59: Net Calorific Value of waste | B59: MJ/kg | C59: 10.345 | D59: 10.331 | E59: 10.745 | F59: 9.926 | G59: 10.33675
A60: Abnormal Events | B60: qty. | C60: 0 | D60: 1 | E60: 1 | F60: 0 | G60: 2 | H60: =IF(G60>0,"yes","no") -> yes
A61: Abnormal operation | B61: hours | C61: 0 | D61: 0 | E61: 0 | F61: 0 | G61: 0 | H61: =+(G61)/I54 -> 0

Sheet Operational Summary
A1: =+'Cover Page'!$B$29 -> Annual Performance Report 2024 | E1: =+'Cover Page'!$B$33 -> Kemsley Generating Station
A3: Summary of Plant Operations and Maintenance during the reporting year
A5: The plant performance (boiler and turbine availability) for 2024 was good and comparable with 2023 with a slightly increased boiler availability. The thermal energy produced and steam energy delivered to D.S. Smith remains in line with expectations and previous years. A very slight increasein the calorific value of the waste was observed and there was an increase in throughput in 2024 compared to 2023. The facility continues to maintain safe and environmentally compliant operations in accordance with the management system and legal requirements. Detailed PPM (planned preventative maintenance) processes, in line with equipment manufacturers recommendations, are in place and managed within the companies CMMS (Computerised Maintenance Management System). No planned maintenance outages were completed in 2024 due to the outage being pushed back to 2025. 15 USDTs (Unscheduled Down Time) were conducted throught 2024 where unanticipated shutdowns were required in order to carry out necessary unplanned plant maintainance. In addition to the routine maintenance tasks and statutory inspections, boiler tubes continue to be exchanged and coated to aid in the reduction of further unplanned downtime due to tube leaks and improve plant availability. Upgraded combustion cameras were installed to allow improved monitoring of the combustion process to ensure maximum efficency. Legacy defects continue to be managed from the construction phase.
A29: Summary of Residue Handling for the reporting year
A31: The residues produced from the incineration process include Incinerator Bottom Ash (IBA) and Air Pollution Control Residues (APCR). The facility has procedures in place as part of the management system for the handling of such residues.
A33: The IBA is sampled and sent to an approved testing laboratory twice a month and for a full hazard analysis once per quarter in accordance with the Environmental Permit. All hazard analysis results have demonstrated the IBA to be non-hazardous. IBA is sent for re-processing at Fortis IBA (Swale), a fully licenced site, where the metals are recovered and the IBA is used to produce construction materials.
A35: APCR is sampled and tested by the same approved laboratory once per quarter. Due to the inevitable hazardous nature of the APCR it is sent to Augean (Peterborough) where it is treated and landfilled. enfinium continue to investigate opportunities for recycling of this material.
A37: All testing of residues in carried out in accordance with the Industrial Emissions Directive (IED) and the Environmental Services Association (ESA) sampling and testing protocol.
A54: =+'Cover Page'!C39 -> 2024 | B54: Plant shut-downs
A55: Date | B55: Reason for shut-down
A56: 2nd-8th January | B56: Unscheduled downtime (tube leak and tile replacement)
A57: 22nd January | B57: Unscheduled downtime
A58: 11th-19th | B58: Unscheduled downtime (tube leak)
A59: 2nd-11th March | B59: Unscheduled downtime (tube leak)
A60: 13th-20th May | B60: USDT, ID Fan bearing failure
A61: 17th-21st June | B61: USDT, Boiler Tube leak
A62: 10th-12th April | B62: USDT, ID Fan bearing failure
A63: 12th-15th May | B63: USDT, Grate damage
A64: 10th-14th June | B64: USDT, grate repairs
A65: 21st July | B65: USDT (Unscheduled Downtime) , Loss of both Waste Cranes
A66: 22nd – 30th | B66: September – USDT, Boiler Tube leak
A67: 3rd July | B67: USDT, ID Fan Trip
A68: 21st July | B68: USDT, Loss of both Waste Cranes
A69: 6th – 7th | B69: USDT, Primary Air Fan filter mesh failure
A70: 25th - 30th September | B70: USDT, Boiler Tube leak
A71: 1st - 2nd October | B71: USDT, Boiler Tube Leak
A72: 1st – 8th October | B72: USDT, Boiler Tube Leak
A73: 15th – 21st December | B73: USDT Boiler Tube Leak

Sheet Perf. Form 1
A1: =+'Cover Page'!C39 -> 2024 | B1: Annual Reporting Performance Form 1
A3: =+'Cover Page'!B31 -> Permit EPR/JP3135DK | F3: Operator: | G3: =+'Cover Page'!B37 -> enfinium K3 CHP Operations Limited
A4: Facility: | B4: =+'Cover Page'!B33:I33 -> Kemsley Generating Station | F4: Form: | G4: Performance 1
A6: Reporting Period from: | D6: 1st Jan 2024 | F6: to: | G6: 31st Dec 2024
A8: =+A1 -> 2024 | B8: Annual Reporting of Waste Disposal and Recovery
A9: Waste Description | C9: Disposal Route(s) | E9: Disposal Tonnes | G9: Recovery Tonnes | I9: % / tonne of waste incinerated
A10: 1) Hazardous Wastes
A11: APC Residues | C11: D09 | E11: 14846.56 | G11: 0 | I11: =IF((E11+G11)>0,(E11+G11)/'Operational Data'!$G$21, "-") -> 0.02485395546
A12: IBA | I12: =IF((E12+G12)>0,(E12+G12)/'Operational Data'!$G$21, "-") -> -
I13: =IF((E13+G13)>0,(E13+G13)/'Operational Data'!$G$21, "-") -> -
I14: =IF((E14+G14)>0,(E14+G14)/'Operational Data'!$G$21, "-") -> -
A15: Total Hazardous Waste | E15: =SUM(E11:F14) -> 14846.56 | G15: =SUM(G11:H14) -> 0 | I15: =IF((E15+G15)>0,(E15+G15)/'Operational Data'!$G$21, "-") -> 0.02485395546
A17: 2) Non-Hazardous Wastes
A18: IBA | C18: R11 | E18: 0 | G18: 123644.315 | I18: =IF((E18+G18)>0,(E18+G18)/'Operational Data'!$G$21, "-") -> 0.2069873626
A19: Ferrous Metal | C19: R04 | E19: 0 | G19: 1284.56 | I19: =IF((E19+G19)>0,(E19+G19)/'Operational Data'!$G$21, "-") -> 0.002150423871
A20: Process Water | I20: =IF((E20+G20)>0,(E20+G20)/'Operational Data'!$G$21, "-") -> -
I21: =IF((E21+G21)>0,(E21+G21)/'Operational Data'!$G$21, "-") -> -
I22: =IF((E22+G22)>0,(E22+G22)/'Operational Data'!$G$21, "-") -> -
A23: Total Non-Hazardous Waste | E23: =SUM(E18:F22) -> 0 | G23: =SUM(G18:H22) -> 124928.875 | I23: =IF((E23+G23)>0,(E23+G23)/'Operational Data'!$G$21, "-") -> 0.2091377864
A24: TOTAL WASTE | E24: =+E23+E15 -> 14846.56 | G24: =+G23+G15 -> 124928.875 | I24: =IF((E24+G24)>0,(E24+G24)/'Operational Data'!$G$21, "-") -> 0.2339917419
A26: Operator’s comments :
A31: =+A1 -> 2024 | B31: Annual Reporting of Water and Other Raw Material Usage
A32: Raw Material | E32: Usage | G32: Unit | H32: Specific Usage | J32: Unit
A33: Mains Water | E33: =+'Operational Data'!G43/1000 -> 8649 | G33: m3 | H33: =IF(E33>0,E33/'Operational Data'!$G$21,"-") -> 0.01447890021 | J33: m3/te
A34: Total Water | E34: =+'Operational Data'!G44+'Operational Data'!G43/1000 -> 8649 | G34: m3 | H34: =IF(E34>0,E34/'Operational Data'!$G$21,"-") -> 0.01447890021 | J34: m3/te
A35: Urea / Ammonia | E35: =+'Operational Data'!G45+'Operational Data'!G46 -> 827321 | G35: kg | H35: =IF(E35>0,E35/'Operational Data'!$G$21,"-") -> 1.384980715 | J35: kg/te
A36: Activated Carbon | E36: =+'Operational Data'!G47 -> 219381 | G36: kg | H36: =IF(E36>0,E36/'Operational Data'!$G$21,"-") -> 0.3672558224 | J36: kg/te
A37: Lime / hydrated lime / Sodium Bicarb. | E37: =+'Operational Data'!G48 -> 1671435 | G37: kg | H37: =IF(E37>0,E37/'Operational Data'!$G$21,"-") -> 2.798073833 | J37: kg/te
A39: Operator’s comments :
A40: "Urea / Ammonia" "Usage" cell formula was not adding Ammonia and Urea Raw Material usage year totals from "Operational data" Tab. Formula ammended.
A43: =+A31 -> 2024 | B43: Annual Reporting of other performance indicators
A44: Parameter | C44: Results by Line
C45: A1 | D45: A2 | E45: A3 | F45: A4 | G45: A5 | I45: Turbine 1 | J45: Turbine 2
A46: Operating hours for the year, hours | C46: 7774 | D46: 7938 | E46: N/A | F46: N/A | G46: N/A | I46: 8523 | J46: N/A
A47: Number of periods of abnormal operation, qty. | C47: 0 | D47: 0 | E47: N/A | F47: N/A | G47: N/A | I47: 0 | J47: N/A
A48: Cumulative hours of abnormal operation for this year, hours | C48: 0 | D48: 0 | E48: N/A | F48: N/A | G48: N/A | I48: 0 | J48: N/A
A50: Operator’s comments :
A54: Signed: | B54: Luke Clothier | G54: Date: | H54: 28/01/2025

Sheet Energy Form 1
A1: =+'Cover Page'!C39 -> 2024 | B1: Annual Reporting of Energy Usage/Export
A3: =+'Cover Page'!B31 -> Permit EPR/JP3135DK | F3: Operator: | G3: =+'Cover Page'!B37 -> enfinium K3 CHP Operations Limited
A5: Facility: | B5: =+'Cover Page'!B33:I33 -> Kemsley Generating Station | F5: Form: | G5: Energy 1
A7: Reporting Period from: | D7: =+'Perf. Form 1'!D6:E6 -> 1st Jan 2024 | F7: to: | G7: =+'Perf. Form 1'!G6:H6 -> 31st Dec 2024
A9: Energy Source | D9: Energy Usage | F9: Unit | G9: Specific Usage (KWh/tonne incinerated
A10: Electricity Produced | D10: =+'Operational Data'!G24 -> 415469 | F10: MWh | G10: =+'Operational Data'!H24 -> 695.5178856
A11: Electricity Imported | D11: =+'Operational Data'!G27 -> 661 | F11: MWh | G11: =+'Operational Data'!H27 -> 1.106550242
A12: Electricity Exported | D12: =+'Operational Data'!G25 -> 367155 | F12: MWh | G12: =+'Operational Data'!H25 -> 614.6376006
A13: Gas Oil | D13: 720.42084 | F13: tonnes | G13: -
A14: Steam/hot water exported | D14: =+'Operational Data'!G30 -> 408548.2201 | F14: GWh | G14: =+'Operational Data'!H30 -> 683.9321205
A18: Operator’s comments :
A19: Gas (fuel) oil used is for plant only. Fuel oil density used 0.82kg/l.
A29: Signed: | B29: Luke Clothier | G29: Date: | H29: 28/01/2025

Sheet Permit Compliance
A1: =+'Cover Page'!$B$29 -> Annual Performance Report 2024 | E1: =+'Cover Page'!$B$33 -> Kemsley Generating Station
A3: Summary of Permit Compliance
A5: Compliance with permit limits for continuously monitored pollutants
A7: The plant met its emission limits as shown in the table below:
A8: Substance | C8: Percentage time compliant during operationNote 1
C9: Half-hourly limit | F9: Daily limit
A10: Particulates | C10: 1 | F10: 1
A11: Oxides of nitrogen | C11: 1 | F11: 1
A12: Sulphur dioxide | C12: 1 | F12: 1
A13: Carbon monoxide | C13: 100.00% 95% of 10-min averages | F13: 1
A14: Total organic carbon | C14: 1 | F14: 1
A15: Hydrogen chloride | C15: 1 | F15: 1
A16: Hydrogen fluoride | C16: 1 | F16: 1
C17: 1 | F17: 1
A19: Summary of non-compliances under the permit Note 2
A20: Date | B20: Summary of non-compliance Note 3 | D20: Reason | G20: Measures taken to prevent reoccurrence | H20: CCS score if applicable*
H21: Impact | I21: Root cause
A22: No non-compliances in 2024
A27: *If the Environment Agency (EA) has given a Compliance Classification Scheme (CCS) score due to a permit non-compliance it should be entered here (CCS4 = No impact; CCS3 = Minor impact; CCS2 = Significant impact; CCS1 = Major impact). If the EA has not yet assessed a non-compliance which you have notified to them, these columns should be left blank.
A29: Summary of any complaints received and actions to taken to resolve them.
A30: Date | B30: Summary of complaint [including Line/Reference] | E30: Reason (including whether substantiated by the operator or the EA) | H30: Measures taken to prevent reoccurrence
A31: No complaints received in 2024

Sheet Improvements
A1: =+'Cover Page'!$B$29 -> Annual Performance Report 2024 | E1: =+'Cover Page'!$B$33 -> Kemsley Generating Station
A3: Summary of Plant Improvements
A5: Summary of any efficiency improvements that have been completed within the year.
A6: During the planned outages a programme of Inconel coating application to boiler tubes has been carried out. This coating increases the resistance to corrosion and reducing downtime caused by tubes leaks. This in turn increases the availability of the plant with less downtime and re-heating of the plant meaning more efficient operations. Work is ongoing on optimisation of combustion within the plant. This ensures the conditionas and perameters are set correctly for optimal burning conditions enabling the efficient and compliant processing of waste with optimum energy recovery. Work has completed regarding widining the roadways to reduce waiting times of vehicles, this will result in a quicker turnaround times and reduce the exhaust fumes from idling vehicles.
A16: Summary of any permit improvement conditions that have been completed within the year and the resulting environmental benefits.
A17: Summary the IC status: - IC1 - Environmental Management System - Submitted 15/07/2021, Discharged 22/07/2021. - IC2 - Commissioning Report - Submitted 04/01/2021, Discharged 02/11/2021. - IC3 - Performance and Optimisation of the SNCR System - Submitted 21/12/2021, EA requested further information and it has been agreed this will be submitted as part of IC8 within the new permit. - IC4 - Air dispersion Modelling - Submitted 08/10/2021, Discharged 23/08/2023. - IC5 - T2S (Residence Time) Testing Report - Submitted 04/12/2020, Discharged 06/08/2021. - IC6 - Review of Energy Efficiency Measures - Submitted 25/08/2021, Discharged 23/08/2023. - IC7 - Incineration of Sludges - Submitted 25/08/2021, Discharged 31/10/2022. - IC8 - NOx Reduction Trial - Submitted 31/10/2023, Awaiting EA response. - IC9 - Demonstration of Low and Stable Mercury content (BAT 4) - Submitted 04/09/2023, Awaiting EA response. - IC10 - Demonstration of Low and Stable Dioxin content (BAT 4) - Submitted 04/09/2023, Awaiting EA response. These submissions provide evidence that the plant has been installed and operated as per design/ permit requirements.
A27: Summary of any changes to the plant or operating techniques which required a variation to the permit and a summary of the resulting environmental impact.
A28: No changes to plant or operating techniques requiring a variation application in 2024.
A38: Summary of any other improvements made to the plant or planned to be made and a summary of the resulting environmental benefits.
A39: A second standby Continuous Emissions Measurement System (CEMS) continues to operate, meaning the facility has four CEMS, a duty and a standby on each line enabling 100% redundancy. This will provide full coverage ensuring no data is lost during malfunction of duty CEMS on either combustion lines. A trial of higher specification stack flow meters (Stackflow400) has been conducted, showing good correlation with current flow meters. The Stackflow400 meters are to be installed across all lines providing continuously monitored flow data with a higher accuracy and ability for calibration. Amesa-B units have been installed to improve the reporting of biogenic carbon fractions and continue to operate. All required testing and trials in accordance with the BREF and new permit was completed as required by the Environmental Permit. The facility continues successfully operating within the lower Emission Limit Value's (ELV's).

Sheet Public Liasion
A1: =+'Cover Page'!$B$29 -> Annual Performance Report 2024 | E1: =+'Cover Page'!$B$33 -> Kemsley Generating Station
A3: Details of Public & Stakeholder Liaison
A5: Summary of events held during the reporting year.
A6: Date | C6: Description
A7: Monthly | C7: Project meeting with local businesses - KFBP Forum (including DS Smith, E.On, FGS, MVV, McLaren Dalcour, Swale Local Council, Kent Council, Sea Terminals Ridham, national highways).
A9: Quarterly | C9: Environmental meeting with DS Smith and E.On.
A16: List of events planned for next year
A17: Date | C17: Description
A18: Monthly | C18: Project meeting with local businesses - KFBP Forum (including DS Smith, E.On, FGS, MVV, McLaren Dalcour, Swale Local Council, Kent Council, Sea Terminals Ridham, national highways).
A20: Quarterly | C20: Environmental meeting with DS Smith and E.On.
A29: If you wish to be involved in the public liaison programme, please contact enfinium Kemsley (01795 685 740)

Sheet CO2 N2O
A1: =+'Cover Page'!$B$29 -> Annual Performance Report 2024 | C1: =+'Cover Page'!$B$33 -> Kemsley Generating Station
A3: Carbon dioxide emissions and biogenic content of waste inputs
A5: Carbon dioxide emissions (all types of plant)
B6: Annual mass of carbon dioxide released | C6: tonnes | D6: 610740
B7: Annual mass of carbon dioxide released per tonne of waste burned | C7: t CO2 / t waste | D7: 1.02
B8: Annual mass of carbon dioxide released per MWh of energy exported | C8: t CO2 / MWh export | D8: 0.81
B9: Description of how annual carbon dioxide mass emission has been calculated. See Note 1 | C9: Measured - CEMS Data
A10: Nitrous oxide emissions (only plants which use ammonia or urea to abate NOx emissions)
B11: Annual mass emissions of nitrous oxide | C11: tonnes N2O | D11: 12.553
B12: Description of how annual nitrous oxide mass emission has been calculated See Note 2 | C12: Measured - CEMS Data
A13: Total annual carbon dioxide + nitrous oxide emissions. See Note 3. | C13: tonnes CO2e | D13: 614480
A14: Biogenic CO2 emissions (See Note 4)
B15: Percentage of total carbon dioxide emissions arising from biogenic waste | C15: % | D15: 0.533
B16: No. of measurements undertaken | C16: Number | D16: 11
B17: Description of how percentage biogenic carbon dioxide emissions have been measured or calculated. See Note 5 | C17: Amesa B monitoring
A18: Biogenic fraction of waste feedstock (See Note 4)
B19: Yearly average biogenic percentage of the waste by net calorific value (NCV) | C19: % | D19: 0.49
B20: Description of how biogenic percentage (by NCV) has been calculated or estimated. See Note 6 | C20: Amesa B monitoring
B21: Yearly average biogenic percentage of the waste by mass | C21: % | D21: 0.537
B22: If waste sampling undertaken, no. of samples used to ascertain average biogenic percentages above | C22: Number | D22: N/A
B23: Description of how biogenic percentage (by mass) has been calculated or estimated. See Note 7 | C23: The biogenic content has been determined by an Amesa-b long term CO2 sampler which collects monthly composite samples. These are then analysed by an ISO/IEC 17025:2017 accredited testing laboratory. The analytical method adhered to by the lab is the %biogenic CO2 determination ISO-13833:2013 Annex A (AMS) using radiocarbon isotope C14.
B25: Comments:
B26: Awaiting C14 result for December 2024 due to laboratoy delays

Sheet Residue Quality
A1: =+'Cover Page'!$B$29 -> Annual Performance Report 2024 | E1: =+'Cover Page'!$B$33 -> Kemsley Generating Station
A3: Residue Quality Monitoring Requirements
A5: Summary of monitoring undertaken and compliance
A6: The residues produced from the process include Incinerator Bottom Ash (IBA) and Air Pollution Control Residues (APCR). The IBA is sampled and sent to an approved testing laboratory twice a month for analysis and both the IBA and APCR are sent for a full hazard analysis once per quarter. All hazard analysis results have demonstrated the IBA to be non-hazardous, APCR is hazardous by nature and disposed of accordingly. All testing of residues in carried out in accordance with the Industrial Emissions Directive and the ESA sampling and testing protocol.
A13: Commentary on any specific events
A14: Date & Event | C14: Description
A15: 01/01/2024 - 31/12/2024 | C15: No specific events, all IBA for 2024 was classed as non-hazardous.
A27: Residue Quality Monitoring Results
A28: Parameter (unit) | C28: Limit* | D28: Normal Operation
D29: Bottom ash | F29: APC Residues
A30: Loss on Ignition (average %) | C30: % | D30: 2024 average = 1.4%
A31: Total Organic Carbon (average %) | C31: <3% | D31: 2024 average = 0.6%
A32: No. of Assessments Undertaken | C32: --- | D32: 24 | F32: 4
A33: No. of Hazardous Results | C33: --- | D33: 0
A34: * The permit will specify a limit of either 5% loss on ignition or 3% total organic carbon. If both are measured anyway, please enter the results here, even where the limit does not apply.
A36: Comments :
A37: LOI and TOC for the IBA are an average of the 24 samples taken in 2024, no samples exceeded the set limits within the Environmental Permit. All samples were sent for analysis at a fully accredited laboratory.

Sheet Water
A1: =+'Cover Page'!$B$29 -> Annual Performance Report 2024 | E1: =+'Cover Page'!$B$33 -> Kemsley Generating Station
A3: Emissions to Water
A5: Summary of monitoring undertaken and compliance
A6: Water balance is achived by a attenuation pond for rainwater with a closed penstock which can emit to the Swale. Regular visual inspections to check for hydrocarbons and particulate are conducted. The penstock requires manual operation and would only be operated following heavy rainfall to prevent flooding, in which case additional inspections and pH testing would be conducted.
A13: Commentary on any specific events
A14: Date & Event | C14: Description
A15: No events in 2024
A22: Emissions to Water / Sewer
A23: Parameter | D23: Monitoring Frequency | F23: Limit | G23: Target | H23: Max. | I23: Average
A24: None set in any permits or consents

Sheet Air (periodic)
A1: =+'Cover Page'!$B$29 -> Annual Performance Report 2024 | E1: =+'Cover Page'!$B$33 -> Kemsley Generating Station
A3: Emissions to Air (periodically monitored)
A5: Summary of monitoring undertaken, standards used and compliance
A6: Results are below set limits where applicable and comparable with the results from 2024, with the exception of 1 untypical mercury result (see comments). Sampling and analysis was carried out by MCERTS certified contractors in accordance with the appropriate standards.
A9: Results of emissions to air that are periodically monitored - oxygen reference 11%
A10: Substance | C10: Ref. Period | D10: Emission Limit Value | F10: Average
F11: A1 Q2 | G11: A2 Q2 | H11: A1 Annual Average | I11: A1 Q4 | J11: A2 Q4 | K11: A2 Annual Average
A12: Hydrogen fluoride | C12: 1 hr | D12: 1 mg/m3 | F12: 0.025 | G12: 0.03 | H12: =AVERAGE(F12,I12) -> 0.0265 | I12: 0.028 | J12: 0.029 | K12: =AVERAGE(G12,J12) -> 0.0295
A13: Cd and Tl and their compounds | C13: 0.5-8hrs | D13: 0.02 mg/m3 | F13: 0.0013 | G13: 0.00067 | H13: =AVERAGE(F13,I13) -> 0.001095 | I13: 0.00089 | J13: 0.00081 | K13: =AVERAGE(G13,J13) -> 0.00074
A14: Hg and its compounds | C14: 0.5-8hrs | D14: 0.02 mg/m3 | F14: 0.011 | G14: 0.0061 | H14: 0.0083 | I14: 0.0056 | J14: 0.0032 | K14: 0.00465
A15: Sb, As, Pb, Cr, Co, Cu, Mn, Ni, V and their compounds | C15: 0.5-8hrs | D15: 0.3 mg/m3 | F15: 0.024 | G15: 0.011 | H15: 0.01515 | I15: 0.0063 | J15: 0.013 | K15: 0.012
A16: Dioxins & Furans (I-TEQ) | C16: 6-8hrs | D16: 0.06 ng/m3 | F16: 0.041 | G16: 0.028 | H16: 0.0275 | I16: 0.014 | J16: 0.014 | K16: 0.021
A17: PCBs (WHO-TEQ Humans / Mammals) | C17: 6-8hrs | D17: None set ng/m3 | F17: 0.005 | G17: 0.0015 | H17: 0.003 | I17: 0.001 | J17: 0.0014 | K17: 0.00145
A18: PCBs (WHO-TEQ Fish) | C18: 6-8hrs | D18: None set ng/m3 | F18: 0.00023 | G18: 7.2e-05 | H18: 0.000138 | I18: 4.6e-05 | J18: 6.7e-05 | K18: 6.95e-05
A19: PCBs (WHO-TEQ Birds) | C19: 6-8hrs | D19: None set ng/m3 | F19: 0.01 | G19: 0.0032 | H19: 0.00595 | I19: 0.0019 | J19: 0.0033 | K19: 0.00325
A20: Dioxins & Furans (WHO-TEQ Humans / Mammals) | C20: 6-8hrs | D20: None set ng/m3 | F20: 0.039 | G20: 0.026 | H20: 0.026 | I20: 0.013 | J20: 0.013 | K20: 0.0195
A21: Dioxins & Furans (WHO-TEQ Fish) | C21: 6-8hrs | D21: None set ng/m3 | F21: 0.041 | G21: 0.03 | H21: 0.028 | I21: 0.015 | J21: 0.015 | K21: 0.0225
A22: Dioxins & Furans (WHO-TEQ Birds) | C22: 6-8hrs | D22: None set ng/m3 | F22: 0.061 | G22: 0.066 | H22: 0.0445 | I22: 0.028 | J22: 0.024 | K22: 0.045
A23: Anthanthrene | C23: 6-8hrs | D23: None set µg/m3 | F23: N/A | G23: 0.0014 | H23: 0.0013 | I23: 0.0013 | J23: 0.0013 | K23: 0.00135
A24: Benzo(a)anthracene | C24: 6-8hrs | D24: None set µg/m3 | F24: N/A | G24: 0.006 | H24: 0.0013 | I24: 0.0013 | J24: 0.0013 | K24: 0.00365
A25: Benzo(a)pyrene | C25: 6-8hrs | D25: None set µg/m3 | F25: N/A | G25: 0.0014 | H25: 0.0013 | I25: 0.0013 | J25: 0.0013 | K25: 0.00135
A26: Benzo(b)fluoranthene | C26: 6-8hrs | D26: None set µg/m3 | F26: N/A | G26: 0.0017 | H26: 0.0013 | I26: 0.0013 | J26: 0.0013 | K26: 0.0015
A27: Benzo(b)naptho(2,1-d) thiophene | C27: 6-8hrs | D27: None set µg/m3 | F27: N/A | G27: 0.0014 | H27: 0.0013 | I27: 0.0013 | J27: 0.0013 | K27: 0.00135
A28: Benzo(c)phenanthrene | C28: 6-8hrs | D28: None set µg/m3 | F28: N/A | G28: 0.0031 | H28: 0.0013 | I28: 0.0013 | J28: 0.0013 | K28: 0.0022
A29: Benzo(ghi)perylene | C29: 6-8hrs | D29: None set µg/m3 | F29: N/A | G29: 0.0014 | H29: 0.0013 | I29: 0.0013 | J29: 0.0013 | K29: 0.00135
A30: Benzo(k)fluoranthene | C30: 6-8hrs | D30: None set µg/m3 | F30: N/A | G30: 0.0014 | H30: 0.0013 | I30: 0.0013 | J30: 0.0013 | K30: 0.00135
A31: Cholanthrene | C31: 6-8hrs | D31: None set µg/m3 | F31: N/A | G31: 0.0014 | H31: 0.0013 | I31: 0.0013 | J31: 0.0013 | K31: 0.00135
A32: Chrysene | C32: 6-8hrs | D32: None set µg/m3 | F32: N/A | G32: 0.0061 | H32: 0.0013 | I32: 0.0013 | J32: 0.0016 | K32: 0.00385
A33: Cyclopenta(cd)pyrene | C33: 6-8hrs | D33: None set µg/m3 | F33: N/A | G33: 0.0039 | H33: 0.0013 | I33: 0.0013 | J33: 0.0013 | K33: 0.0026
A34: Dibenzo(ai)pyrene | C34: 6-8hrs | D34: None set µg/m3 | F34: N/A | G34: 0.0014 | H34: 0.0013 | I34: 0.0013 | J34: 0.0013 | K34: 0.00135
A35: Dibenzo(ah)anthracene | C35: 6-8hrs | D35: None set µg/m3 | F35: N/A | G35: 0.0014 | H35: 0.0013 | I35: 0.0013 | J35: 0.0013 | K35: 0.00135
A36: Fluoranthene | C36: 6-8hrs | D36: None set µg/m3 | F36: N/A | G36: 0.23 | H36: 0.013 | I36: 0.013 | J36: 0.017 | K36: 0.1235
A37: Indeno(123-cd) pyrene | C37: 6-8hrs | D37: None set µg/m3 | F37: N/A | G37: 0.0014 | H37: 0.0013 | I37: 0.0013 | J37: 0.0013 | K37: 0.00135
A38: Naphthalene | C38: 6-8hrs | D38: None set µg/m3 | F38: N/A | G38: 0.12 | H38: 0.35 | I38: 0.35 | J38: 0.38 | K38: 0.25
A39: Comments :
A40: Specific individual poly-cyclic aromatic hydrocarbons (PAHs) monitoring is completed annually as per Table S3.1 in Environmental Permit EPR/JP3135DK/V006 Line 1 Q2 periodic monitoring Mercury results triggered the mercury monitoring BREF protocol, 2x re-tests were conducted over 1 month, demonstrating consistent performance <10ug/Nm3. Re-test results submitted to the environment agency.

Sheet Air (CEMS)
A1: =+'Cover Page'!$B$29 -> Annual Performance Report 2024 | I1: =+'Cover Page'!$B$33 -> Kemsley Generating Station
A3: Emissions to Air (continuously monitored)
A5: Summary of monitoring undertaken, standards used and compliance
A6: For 2024, the facility achieve 100% compliance with the limits set in the Environmental Permit for all continiuously monitored determinands. HCl, SO2, NOx, TOC and CO all have limits set out in the Environmental Permit; these determinands are continuously monitored by CEMS's in compliance with EN 14181. NH3, O2, CO2 and Water Vapour and are also continuously monitored by the CEMS's. All instruments are QAL1 compliant and undergo annual checks either in the form of a QAL2 or an Annual Surveillance Test compliant with the requirements of EN 14181.
A11: Results of emissions to air that are continuously monitored (maximum and average values for each line) - oxygen reference 11%
A12: Substance | B12: Reference Period | C12: Emission Limit Value | D12: A1 | F12: A2 | H12: A3 | J12: A4 | L12: A5
D13: Max. | E13: Avg. | F13: Max. | G13: Avg. | H13: Max. | I13: Avg. | J13: Max. | K13: Avg. | L13: Max. | M13: Avg.
A14: Oxides of nitrogen | B14: Daily mean | C14: 180 mg/m3 | D14: 166.8866667 | E14: 173.65 | F14: 171.45 | G14: 166.7533333 | H14: - | I14: - | J14: - | K14: - | L14: - | M14: -
B15: ½ hourly mean | C15: 400 mg/m3 | D15: 237.5 | E15: 166.8916667 | F15: 195.9 | G15: 166.775 | H15: - | I15: - | J15: - | K15: - | L15: - | M15: -
A16: Particulates | B16: Daily mean | C16: 5 mg/m3 | D16: 0.6 | E16: 0.1 | F16: 1.09 | G16: 0.1258333333 | H16: - | I16: - | J16: - | K16: - | L16: - | M16: -
B17: ½ hourly mean | C17: 30 mg/m3 | D17: 5.4 | E17: 0.1083333333 | F17: 4.2 | G17: 0.1333333333 | H17: - | I17: - | J17: - | K17: - | L17: - | M17: -
A18: Total Organic Carbon | B18: Daily mean | C18: 10 mg/m3 | D18: 1.18 | E18: 0.2183333333 | F18: 1.15 | G18: 0.1666666667 | H18: - | I18: - | J18: - | K18: - | L18: - | M18: -
B19: ½ hourly mean | C19: 20 mg/m3 | D19: 7.4 | E19: 0.2166666667 | F19: 0.175 | G19: 6 | H19: - | I19: - | J19: - | K19: - | L19: - | M19: -
A20: Hydrogen chloride | B20: Daily mean | C20: 8 mg/m3 | D20: 7.19 | E20: 5.319166667 | F20: 7.3 | G20: 5.729166667 | H20: - | I20: - | J20: - | K20: - | L20: - | M20: -
B21: ½ hourly mean | C21: 60 mg/m3 | D21: 32.1 | E21: 5.422222222 | F21: 13.3 | G21: 5.591666667 | H21: - | I21: - | J21: - | K21: - | L21: - | M21: -
A22: Sulphur dioxide | B22: Daily mean | C22: 40 mg/m3 | D22: 23.73 | E22: 2.525833333 | F22: 22.26 | G22: 2.288333333 | H22: - | I22: - | J22: - | K22: - | L22: - | M22: -
B23: ½ hourly mean | C23: 200 mg/m3 | D23: 153 | E23: 2.516666667 | F23: 105.5 | G23: 2.308333333 | H23: - | I23: - | J23: - | K23: - | L23: - | M23: -
A24: Carbon monoxide | B24: Daily mean | C24: 50 mg/m3 | D24: 9.64 | E24: 3.620833333 | F24: 13.34 | G24: 3.008333333 | H24: - | I24: - | J24: - | K24: - | L24: - | M24: -
B25: 95%ile 10-min avg * | C25: 150 mg/m3 * | D25: 6.233333333 | E25: 3.675 | F25: 6.6 | G25: 3.016666667 | H25: - | I25: - | J25: - | K25: - | L25: - | M25: -
A26: Ammonia | B26: Daily mean | C26: 15 mg/m3 | D26: 5.66 | E26: 0.6041666667 | F26: 1.8 | G26: 0.0975 | H26: - | I26: - | J26: - | K26: - | L26: - | M26: -
A27: * = delete as appropriate, depending on whether your plant has half-hourly or 10-min CO ELVs
A28: Comments :
A29: K3 facility operates 2 lines (2 boilers and 2 emission points) with 1 common turbine.

Sheet HCl
A1: =+'Cover Page'!$B$29 -> Annual Performance Report 2024 | E1: =+'Cover Page'!$B$33 -> Kemsley Generating Station
A3: Monitoring of Hydrogen Chloride emissions | D3: Whole Installation | G3: See Notes in Cell Q3 | J3: =+A3 -> Monitoring of Hydrogen Chloride emissions | N3: Per Combustion Line
A5: =+'Cover Page'!C39 -> 2024 | B5: 1/2 Hourly Reference Periods | E5: Daily Reference Periods
A6: mg/Nm3 | B6: 1/2 hourly HCl ELV | C6: Monthly mean of half-hourly averages | D6: Highest half- hourly average | E6: Daily HCl ELV | F6: Monthly mean of daily averages | G6: Highest daily average | J6: =+A5 -> 2024 | K6: mg/Nm3 | L6: Monthly mean of half-hourly averages | M6: Highest half- hourly average | N6: Monthly mean of daily averages | O6: Highest daily average
A7: Jan | B7: 60 | C7: =AVERAGE(L7,L22) -> 4.4 | D7: =MAX(M7,M22) -> 11.3 | E7: 8 | F7: =AVERAGE(N7,N22) -> 4.37 | G7: =MAX(O7,O22) -> 6.48 | J7: A1 | K7: Jan | L7: 4.3 | M7: 8.4 | N7: 4.29 | O7: 6.48
A8: Feb | B8: 60 | C8: =AVERAGE(L8,L23) -> 5.5 | D8: =MAX(M8,M23) -> 17 | E8: 8 | F8: =AVERAGE(N8,N23) -> 5.485 | G8: =MAX(O8,O23) -> 6.77 | K8: Feb | L8: 5 | M8: 17 | N8: 5.01 | O8: 6.76
A9: Mar | B9: 60 | C9: =AVERAGE(L9,L24) -> 6 | D9: =MAX(M9,M24) -> 10.8 | E9: 8 | F9: 6 | G9: 7.07 | K9: Mar | L9: 5.8 | M9: 8.3 | N9: 5.79 | O9: 6.71
A10: Apr | B10: 60 | C10: =AVERAGE(L10,L25) -> 6.5 | D10: 9.6 | E10: 8 | F10: 6.49 | G10: 6.78 | K10: Apr | L10: 6.5 | M10: 9.6 | N10: 6.48 | O10: 6.78
A11: May | B11: 60 | C11: 6.25 | D11: =MAX(M11,M26) -> 10.1 | E11: 8 | F11: 6.23 | G11: 7.3 | K11: May | L11: 5.8 | M11: 8.4 | N11: 5.81 | O11: 7.1
A12: Jun | B12: 60 | C12: 6.2 | D12: 8.9 | E12: 8 | F12: 6.155 | G12: 7.08 | K12: Jun | L12: 6 | M12: 8.5 | N12: 5.96 | O12: 7.08
A13: Jul | B13: 60 | C13: 6 | D13: 32.1 | E13: 8 | F13: 5.985 | G13: 7.19 | K13: Jul | L13: 6.2 | M13: 32.1 | N13: 6.15 | O13: 7.19
A14: Aug | B14: 60 | C14: 5.55 | D14: 10.2 | E14: 8 | F14: 5.56 | G14: 7.01 | K14: Aug | L14: 5.2 | M14: 8.7 | N14: 5.18 | O14: 7.01
A15: Sep | B15: 60 | C15: 4.3 | D15: 9.5 | E15: 8 | F15: 4.325 | G15: 6.86 | K15: Sep | L15: 3.9 | M15: 9.1 | N15: 3.9 | O15: 6.37
A16: Oct | B16: 60 | C16: 5 | D16: 12.1 | E16: 8 | F16: 5.03 | G16: 6.98 | K16: Oct | L16: 5.1 | M16: 10.5 | N16: 5.15 | O16: 6.98
A17: Nov | B17: 60 | C17: 5.7 | D17: 10.5 | E17: 8 | F17: 5.695 | G17: 6.89 | K17: Nov | L17: 6.4 | M17: 10.5 | N17: 6.41 | O17: 6.89
A18: Dec | B18: 60 | C18: 4.1 | D18: =MAX(M18,M33) -> 10.7 | E18: 8 | F18: 4.965 | G18: 5.85 | K18: Dec | L18: 3.7 | M18: 9 | N18: 3.7 | O18: 5.85
K19: Annual | L19: =AVERAGE(L10:L18) -> 5.422222222 | M19: =MAX(M10:M18) -> 32.1 | N19: =AVERAGE(N7:N18) -> 5.319166667 | O19: =MAX(O7:O18) -> 7.19
J21: =+A5 -> 2024 | K21: mg/Nm3 | L21: Monthly mean of half-hourly averages | M21: Highest half- hourly average | N21: Monthly mean of daily averages | O21: Highest daily average
J22: A2 | K22: Jan | L22: 4.5 | M22: 11.3 | N22: 4.45 | O22: 6.11
K23: Feb | L23: 6 | M23: 10.5 | N23: 5.96 | O23: 6.77
K24: Mar | L24: 6.2 | M24: 10.8 | N24: 6.21 | O24: 7.07
K25: Apr | L25: 6.5 | M25: 9.6 | N25: 6.5 | O25: 6.74
K26: May | L26: 6.7 | M26: 10.1 | N26: 6.65 | O26: 7.3
K27: Jun | L27: 6.4 | M27: 8.9 | N27: 6.35 | O27: 6.99
K28: Jul | L28: 5.8 | M28: 13.3 | N28: 5.82 | O28: 7.08
K29: Aug | L29: 5.9 | M29: 10.2 | N29: 5.94 | O29: 6.97
K30: Sep | L30: 4.7 | M30: 9.5 | N30: 4.75 | O30: 6.86
K31: Oct | L31: 4.9 | M31: 12.1 | N31: 4.91 | O31: 6.91
K32: Nov | L32: 5 | M32: 9.7 | N32: 4.98 | O32: 6.41
K33: Dec | L33: 4.5 | M33: 10.7 | N33: 6.23 | O33: 4.51
K34: Annual | L34: =AVERAGE(L22:L33) -> 5.591666667 | M34: =MAX(M22:M33) -> 13.3 | N34: =AVERAGE(N22:N33) -> 5.729166667 | O34: =MAX(O22:O33) -> 7.3
J36: =+A5 -> 2024 | K36: mg/Nm3 | L36: Monthly mean of half-hourly averages | M36: Highest half- hourly average | N36: Monthly mean of daily averages | O36: Highest daily average
J37: A3 | K37: Jan
K38: Feb
K39: Mar
K40: Apr
K41: May
K42: Jun
K43: Jul
K44: Aug
K45: Sep
K46: Oct
K47: Nov
A48: Comments : | K48: Dec
K49: Annual | L49: =AVERAGE(L37:L48) ->  | M49: =MAX(M37:M48) -> 0 | N49: =AVERAGE(N37:N48) ->  | O49: =MAX(O37:O48) -> 0
J51: =+A5 -> 2024 | K51: mg/Nm3 | L51: Monthly mean of half-hourly averages | M51: Highest half- hourly average | N51: Monthly mean of daily averages | O51: Highest daily average
J52: A4 | K52: Jan
K53: Feb
K54: Mar
K55: Apr
K56: May
K57: Jun
K58: Jul
K59: Aug
K60: Sep
K61: Oct
K62: Nov
K63: Dec
K64: Annual | L64: =AVERAGE(L52:L63) ->  | M64: =MAX(M52:M63) -> 0 | N64: =AVERAGE(N52:N63) ->  | O64: =MAX(O52:O63) -> 0
J66: =+A5 -> 2024 | K66: mg/Nm3 | L66: Monthly mean of half-hourly averages | M66: Highest half- hourly average | N66: Monthly mean of daily averages | O66: Highest daily average
J67: A5 | K67: Jan
K68: Feb
K69: Mar
K70: Apr
K71: May
K72: Jun
K73: Jul
K74: Aug
K75: Sep
K76: Oct
K77: Nov
K78: Dec
K79: Annual | L79: =AVERAGE(L67:L78) ->  | M79: =MAX(M67:M78) -> 0 | N79: =AVERAGE(N67:N78) ->  | O79: =MAX(O67:O78) -> 0

Sheet SO2
A1: =+'Cover Page'!$B$29 -> Annual Performance Report 2024 | E1: =+'Cover Page'!$B$33 -> Kemsley Generating Station
A3: Monitoring of Sulphur dioxide emissions | D3: Whole Installation | G3: See Notes in Cell Q3 | J3: =+A3 -> Monitoring of Sulphur dioxide emissions | N3: Per Combustion Line
A5: =+'Cover Page'!C39 -> 2024 | B5: 1/2 Hourly Reference Periods | E5: Daily Reference Periods
A6: mg/Nm3 | B6: 1/2 hourly SO2 ELV | C6: Monthly mean of half-hourly averages | D6: Highest half- hourly average | E6: Daily SO2 ELV | F6: Monthly mean of daily averages | G6: Highest daily average | J6: =+A5 -> 2024 | K6: mg/Nm3 | L6: Monthly mean of half-hourly averages | M6: Highest half- hourly average | N6: Monthly mean of daily averages | O6: Highest daily average
A7: Jan | B7: 200 | C7: =AVERAGE(L7,L22) -> 3.85 | D7: =MAX(M7,M22) -> 105.5 | E7: 40 | F7: =AVERAGE(N7,N22) -> 3.845 | G7: =MAX(O7,O22) -> 18.12 | J7: A1 | K7: Jan | L7: 3.4 | M7: 66.8 | N7: 3.42 | O7: 13.16
A8: Feb | B8: 200 | C8: =AVERAGE(L8,L23) -> 1.75 | D8: =MAX(M8,M23) -> 38.8 | E8: 40 | F8: =AVERAGE(N8,N23) -> 1.72 | G8: =MAX(O8,O23) -> 7.85 | K8: Feb | L8: 2 | M8: 38.8 | N8: 1.98 | O8: 5.82
A9: Mar | B9: 200 | C9: 2.35 | D9: 34.6 | E9: 40 | F9: 2.36 | G9: 7.62 | K9: Mar | L9: 2.3 | M9: 26.2 | N9: 2.34 | O9: 5.29
A10: Apr | B10: 200 | C10: 1.1 | D10: 22.4 | E10: 40 | F10: 1.06 | G10: 5 | K10: Apr | L10: 1.4 | M10: 17.9 | N10: 1.36 | O10: 3.97
A11: May | B11: 200 | C11: 0.85 | D11: 36.4 | E11: 40 | F11: 0.94 | G11: 7.61 | K11: May | L11: 0.8 | M11: 36.4 | N11: 0.94 | O11: 2.59
A12: Jun | B12: 200 | C12: 2.1 | D12: 43.4 | E12: 40 | F12: 2.09 | G12: 18.73 | K12: Jun | L12: 2.1 | M12: 34 | N12: 2.08 | O12: 18.73
A13: Jul | B13: 200 | C13: 2.8 | D13: 153 | E13: 40 | F13: 2.77 | G13: 22.26 | K13: Jul | L13: 2.3 | M13: 153 | N13: 2.29 | O13: 6.73
A14: Aug | B14: 200 | C14: 1.4 | D14: 23.5 | E14: 40 | F14: 1.39 | G14: 5.45 | K14: Aug | L14: 1.8 | M14: 23.4 | N14: 1.78 | O14: 5.45
A15: Sep | B15: 200 | C15: 2.75 | D15: 39.8 | E15: 40 | F15: 2.775 | G15: 8.07 | K15: Sep | L15: 2.7 | M15: 35.1 | N15: 2.74 | O15: 8.07
A16: Oct | B16: 200 | C16: 2.3 | D16: 98.6 | E16: 40 | F16: 2.285 | G16: 16.76 | K16: Oct | L16: 3.1 | M16: 98.6 | N16: 3.11 | O16: 16.76
A17: Nov | B17: 200 | C17: 2.4 | D17: 53.6 | E17: 40 | F17: 2.385 | G17: 6.84 | K17: Nov | L17: 2.3 | M17: 27.2 | N17: 2.3 | O17: 4.93
A18: Dec | B18: 200 | C18: 5.3 | D18: 86.4 | E18: 40 | F18: 5.265 | G18: 23.73 | K18: Dec | L18: 6 | M18: 86.4 | N18: 5.97 | O18: 23.73
K19: Annual | L19: =AVERAGE(L7:L18) -> 2.516666667 | M19: =MAX(M7:M18) -> 153 | N19: =AVERAGE(N7:N18) -> 2.525833333 | O19: =MAX(O7:O18) -> 23.73
J21: =+A5 -> 2024 | K21: mg/Nm3 | L21: Monthly mean of half-hourly averages | M21: Highest half- hourly average | N21: Monthly mean of daily averages | O21: Highest daily average
J22: A2 | K22: Jan | L22: 4.3 | M22: 105.5 | N22: 4.27 | O22: 18.12
K23: Feb | L23: 1.5 | M23: 32 | N23: 1.46 | O23: 7.85
K24: Mar | L24: 2.4 | M24: 34.6 | N24: 2.38 | O24: 7.62
K25: Apr | L25: 0.8 | M25: 22.4 | N25: 0.76 | O25: 5
K26: May | L26: 0.9 | M26: 24.2 | N26: 0.94 | O26: 7.61
K27: Jun | L27: 2.1 | M27: 43.4 | N27: 2.1 | O27: 15.33
K28: Jul | L28: 3.3 | M28: 61.4 | N28: 3.25 | O28: 22.26
K29: Aug | L29: 1 | M29: 23.5 | N29: 1 | O29: 4.08
K30: Sep | L30: 2.8 | M30: 39.8 | N30: 2.81 | O30: 6.96
K31: Oct | L31: 1.5 | M31: 41.5 | N31: 1.46 | O31: 3.11
K32: Nov | L32: 2.5 | M32: 53.6 | N32: 2.47 | O32: 6.84
K33: Dec | L33: 4.6 | M33: 70.8 | N33: 4.56 | O33: 13.2
K34: Annual | L34: =AVERAGE(L22:L33) -> 2.308333333 | M34: =MAX(M22:M33) -> 105.5 | N34: =AVERAGE(N22:N33) -> 2.288333333 | O34: =MAX(O22:O33) -> 22.26
J36: =+A5 -> 2024 | K36: mg/Nm3 | L36: Monthly mean of half-hourly averages | M36: Highest half- hourly average | N36: Monthly mean of daily averages | O36: Highest daily average
J37: A3 | K37: Jan
K38: Feb
K39: Mar
K40: Apr
K41: May
K42: Jun
K43: Jul
K44: Aug
K45: Sep
K46: Oct
K47: Nov
A48: Comments : | K48: Dec
K49: Annual | L49: =AVERAGE(L37:L48) ->  | M49: =MAX(M37:M48) -> 0 | N49: =AVERAGE(N37:N48) ->  | O49: =MAX(O37:O48) -> 0
J51: =+A5 -> 2024 | K51: mg/Nm3 | L51: Monthly mean of half-hourly averages | M51: Highest half- hourly average | N51: Monthly mean of daily averages | O51: Highest daily average
J52: A4 | K52: Jan
K53: Feb
K54: Mar
K55: Apr
K56: May
K57: Jun
K58: Jul
K59: Aug
K60: Sep
K61: Oct
K62: Nov
K63: Dec
K64: Annual | L64: =AVERAGE(L52:L63) ->  | M64: =MAX(M52:M63) -> 0 | N64: =AVERAGE(N52:N63) ->  | O64: =MAX(O52:O63) -> 0
J66: =+A5 -> 2024 | K66: mg/Nm3 | L66: Monthly mean of half-hourly averages | M66: Highest half- hourly average | N66: Monthly mean of daily averages | O66: Highest daily average
J67: A5 | K67: Jan
K68: Feb
K69: Mar
K70: Apr
K71: May
K72: Jun
K73: Jul
K74: Aug
K75: Sep
K76: Oct
K77: Nov
K78: Dec
K79: Annual | L79: =AVERAGE(L67:L78) ->  | M79: =MAX(M67:M78) -> 0 | N79: =AVERAGE(N67:N78) ->  | O79: =MAX(O67:O78) -> 0

Sheet NOx
A1: =+'Cover Page'!$B$29 -> Annual Performance Report 2024 | E1: =+'Cover Page'!$B$33 -> Kemsley Generating Station
A3: Monitoring of Oxides of Nitrogen emissions | D3: Whole Installation | G3: See Notes in Cell Q3 | J3: =+A3 -> Monitoring of Oxides of Nitrogen emissions | N3: Per Combustion Line
A5: =+'Cover Page'!C39 -> 2024 | B5: 1/2 Hourly Reference Periods | E5: Daily Reference Periods
A6: mg/Nm3 | B6: 1/2 hourly NOx ELV | C6: Monthly mean of half-hourly averages | D6: Highest half- hourly average | E6: Daily NOx ELV | F6: Monthly mean of daily averages | G6: Highest daily average | J6: =+A5 -> 2024 | K6: mg/Nm3 | L6: Monthly mean of half-hourly averages | M6: Highest half- hourly average | N6: Monthly mean of daily averages | O6: Highest daily average
A7: Jan | B7: 400 | C7: =AVERAGE(L7,L22) -> 163 | D7: =MAX(M7,M22) -> 219.3 | E7: 180 | F7: =AVERAGE(N7,N22) -> 162.965 | G7: =MAX(O7,O22) -> 170.03 | J7: A1 | K7: Jan | L7: 163.4 | M7: 219.3 | N7: 163.37 | O7: 169.74
A8: Feb | B8: 400 | C8: =AVERAGE(L8,L23) -> 161.2 | D8: =MAX(M8,M23) -> 198.9 | E8: 180 | F8: =AVERAGE(N8,N23) -> 161.2 | G8: =MAX(O8,O23) -> 162.24 | K8: Feb | L8: 161.1 | M8: 198.9 | N8: 161.09 | O8: 162.24
A9: Mar | B9: 400 | C9: 161.6 | D9: 218.7 | E9: 180 | F9: 161.59 | G9: 164.04 | K9: Mar | L9: 161.9 | M9: 218.7 | N9: 161.92 | O9: 164.04
A10: Apr | B10: 400 | C10: 161.75 | D10: 208.9 | E10: 180 | F10: 161.73 | G10: 168.15 | K10: Apr | L10: 162.2 | M10: 208.9 | N10: 162.19 | O10: 168.15
A11: May | B11: 400 | C11: 169.35 | D11: 198.5 | E11: 180 | F11: 169.29 | G11: 170.36 | K11: May | L11: 169.4 | M11: 198.5 | N11: 169.29 | O11: 170.36
A12: Jun | B12: 400 | C12: 168.45 | D12: 231.4 | E12: 180 | F12: 168.465 | G12: 173.65 | K12: Jun | L12: 167.4 | M12: 231.4 | N12: 167.45 | O12: 173.65
A13: Jul | B13: 400 | C13: 169.5 | D13: 237.5 | E13: 180 | F13: 169.46 | G13: 171.45 | K13: Jul | L13: 169.7 | M13: 237.5 | N13: 169.67 | O13: 171.02
A14: Aug | B14: 400 | C14: 169.55 | D14: 227.1 | E14: 180 | F14: 169.54 | G14: 171.16 | K14: Aug | L14: 169.7 | M14: 227.1 | N14: 169.71 | O14: 171.02
A15: Sep | B15: 400 | C15: 169.25 | D15: 235.1 | E15: 180 | F15: 169.28 | G15: 170.56 | K15: Sep | L15: 169.6 | M15: 235.1 | N15: 169.64 | O15: 170.56
A16: Oct | B16: 400 | C16: 169.6 | D16: 209.9 | E16: 180 | F16: 169.585 | G16: 171.6 | K16: Oct | L16: 169.7 | M16: 209.9 | N16: 169.7 | O16: 171.6
A17: Nov | B17: 400 | C17: 169.6 | D17: 208.2 | E17: 180 | F17: 169.59 | G17: 170.03 | K17: Nov | L17: 169.6 | M17: 208.2 | N17: 169.62 | O17: 170.03
A18: Dec | B18: 400 | C18: 169.15 | D18: 192.5 | E18: 180 | F18: 169.145 | G18: 170.04 | K18: Dec | L18: 169 | M18: 192.5 | N18: 168.99 | O18: 169.93
K19: Annual | L19: =AVERAGE(L7:L18) -> 166.8916667 | M19: =MAX(M7:M18) -> 237.5 | N19: =AVERAGE(N7:N18) -> 166.8866667 | O19: =MAX(O7:O18) -> 173.65
J21: =+A5 -> 2024 | K21: mg/Nm3 | L21: Monthly mean of half-hourly averages | M21: Highest half- hourly average | N21: Monthly mean of daily averages | O21: Highest daily average
J22: A2 | K22: Jan | L22: 162.6 | M22: 184.6 | N22: 162.56 | O22: 170.03
K23: Feb | L23: 161.3 | M23: 185.7 | N23: 161.31 | O23: 162
K24: Mar | L24: 161.3 | M24: 183.7 | N24: 161.26 | O24: 162.12
K25: Apr | L25: 161.3 | M25: 182.5 | N25: 161.27 | O25: 167.02
K26: May | L26: 169.3 | M26: 194.2 | N26: 169.29 | O26: 170.23
K27: Jun | L27: 169.5 | M27: 195.9 | N27: 169.48 | O27: 170.95
K28: Jul | L28: 169.3 | M28: 192.1 | N28: 169.25 | O28: 171.45
K29: Aug | L29: 169.4 | M29: 195.3 | N29: 169.37 | O29: 171.16
K30: Sep | L30: 168.9 | M30: 191.1 | N30: 168.92 | O30: 169.81
K31: Oct | L31: 169.5 | M31: 195.7 | N31: 169.47 | O31: 169.98
K32: Nov | L32: 169.6 | M32: 188.2 | N32: 169.56 | O32: 169.88
K33: Dec | L33: 169.3 | M33: 189.8 | N33: 169.3 | O33: 170.04
K34: Annual | L34: =AVERAGE(L22:L33) -> 166.775 | M34: =MAX(M22:M33) -> 195.9 | N34: =AVERAGE(N22:N33) -> 166.7533333 | O34: =MAX(O22:O33) -> 171.45
J36: =+A5 -> 2024 | K36: mg/Nm3 | L36: Monthly mean of half-hourly averages | M36: Highest half- hourly average | N36: Monthly mean of daily averages | O36: Highest daily average
J37: A3 | K37: Jan
K38: Feb
K39: Mar
K40: Apr
K41: May
K42: Jun
K43: Jul
K44: Aug
K45: Sep
K46: Oct
K47: Nov
A48: Comments : | K48: Dec
K49: Annual | L49: =AVERAGE(L37:L48) ->  | M49: =MAX(M37:M48) -> 0 | N49: =AVERAGE(N37:N48) ->  | O49: =MAX(O37:O48) -> 0
J51: =+A5 -> 2024 | K51: mg/Nm3 | L51: Monthly mean of half-hourly averages | M51: Highest half- hourly average | N51: Monthly mean of daily averages | O51: Highest daily average
J52: A4 | K52: Jan
K53: Feb
K54: Mar
K55: Apr
K56: May
K57: Jun
K58: Jul
K59: Aug
K60: Sep
K61: Oct
K62: Nov
K63: Dec
K64: Annual | L64: =AVERAGE(L52:L63) ->  | M64: =MAX(M52:M63) -> 0 | N64: =AVERAGE(N52:N63) ->  | O64: =MAX(O52:O63) -> 0
J66: =+A5 -> 2024 | K66: mg/Nm3 | L66: Monthly mean of half-hourly averages | M66: Highest half- hourly average | N66: Monthly mean of daily averages | O66: Highest daily average
J67: A5 | K67: Jan
K68: Feb
K69: Mar
K70: Apr
K71: May
K72: Jun
K73: Jul
K74: Aug
K75: Sep
K76: Oct
K77: Nov
K78: Dec
K79: Annual | L79: =AVERAGE(L67:L78) ->  | M79: =MAX(M67:M78) -> 0 | N79: =AVERAGE(N67:N78) ->  | O79: =MAX(O67:O78) -> 0

Sheet TOC
A1: =+'Cover Page'!$B$29 -> Annual Performance Report 2024 | E1: =+'Cover Page'!$B$33 -> Kemsley Generating Station
A3: Monitoring of Total organic carbon emissions | D3: Whole Installation | G3: See Notes in Cell Q3 | J3: =+A3 -> Monitoring of Total organic carbon emissions | N3: Per Combustion Line
A5: =+'Cover Page'!C39 -> 2024 | B5: 1/2 Hourly Reference Periods | E5: Daily Reference Periods
A6: mg/Nm3 | B6: 1/2 hourly TOC ELV | C6: Monthly mean of half-hourly averages | D6: Highest half- hourly average | E6: Daily TOC ELV | F6: Monthly mean of daily averages | G6: Highest daily average | J6: =+A5 -> 2024 | K6: mg/Nm3 | L6: Monthly mean of half-hourly averages | M6: Highest half- hourly average | N6: Monthly mean of daily averages | O6: Highest daily average
A7: Jan | B7: 20 | C7: =AVERAGE(L7,L22) -> 0.15 | D7: =MAX(M7,M22) -> 1.5 | E7: 10 | F7: =AVERAGE(N7,N22) -> 0.15 | G7: =MAX(O7,O22) -> 0.37 | J7: A1 | K7: Jan | L7: 0.2 | M7: 1.5 | N7: 0.22 | O7: 0.37
A8: Feb | B8: 20 | C8: =AVERAGE(L8,L23) -> 0.15 | D8: =MAX(M8,M23) -> 7.4 | E8: 10 | F8: =AVERAGE(N8,N23) -> 0.165 | G8: =MAX(O8,O23) -> 0.6 | K8: Feb | L8: 0.2 | M8: 7.4 | N8: 0.24 | O8: 0.6
A9: Mar | B9: 20 | C9: 0.15 | D9: 2 | E9: 10 | F9: 0.15 | G9: 0.34 | K9: Mar | L9: 0.1 | M9: 2 | N9: 0.12 | O9: 0.18
A10: Apr | B10: 20 | C10: 0.15 | D10: 3.8 | E10: 10 | F10: 0.155 | G10: 0.31 | K10: Apr | L10: 0.2 | M10: 2.1 | N10: 0.19 | O10: 0.31
A11: May | B11: 20 | C11: 0.2 | D11: 4.2 | E11: 10 | F11: 0.15 | G11: 0.51 | K11: May | L11: 0.2 | M11: 4.2 | N11: 0.15 | O11: 0.51
A12: Jun | B12: 20 | C12: 0.3 | D12: 4.5 | E12: 10 | F12: 0.265 | G12: 1.18 | K12: Jun | L12: 0.4 | M12: 2.1 | N12: 0.38 | O12: 1.18
A13: Jul | B13: 20 | C13: 0.25 | D13: 4.4 | E13: 10 | F13: 0.25 | G13: 0.97 | K13: Jul | L13: 0.2 | M13: 1.9 | N13: 0.22 | O13: 0.28
A14: Aug | B14: 20 | C14: 0.2 | D14: 2.9 | E14: 10 | F14: 0.22 | G14: 0.44 | K14: Aug | L14: 0.2 | M14: 2.9 | N14: 0.21 | O14: 0.31
A15: Sep | B15: 20 | C15: 0.2 | D15: 3.5 | E15: 10 | F15: 0.22 | G15: 0.36 | K15: Sep | L15: 0.2 | M15: 1.7 | N15: 0.22 | O15: 0.36
A16: Oct | B16: 20 | C16: 0.2 | D16: 2.8 | E16: 10 | F16: 0.21 | G16: 1.15 | K16: Oct | L16: 0.2 | M16: 2.8 | N16: 0.21 | O16: 0.67
A17: Nov | B17: 20 | C17: 0.15 | D17: 3.4 | E17: 10 | F17: 0.165 | G17: 0.32 | K17: Nov | L17: 0.2 | M17: 2.7 | N17: 0.2 | O17: 0.32
A18: Dec | B18: 20 | C18: 0.25 | D18: 3.7 | E18: 10 | F18: 0.21 | G18: 0.97 | K18: Dec | L18: 0.3 | M18: 3.7 | N18: 0.26 | O18: 0.97
K19: Annual | L19: =AVERAGE(L7:L18) -> 0.2166666667 | M19: =MAX(M7:M18) -> 7.4 | N19: =AVERAGE(N7:N18) -> 0.2183333333 | O19: =MAX(O7:O18) -> 1.18
J21: =+A5 -> 2024 | K21: mg/Nm3 | L21: Monthly mean of half-hourly averages | M21: Highest half- hourly average | N21: Monthly mean of daily averages | O21: Highest daily average
J22: A2 | K22: Jan | L22: 0.1 | M22: 1.2 | N22: 0.08 | O22: 0.11
K23: Feb | L23: 0.1 | M23: 6 | N23: 0.09 | O23: 0.2
K24: Mar | L24: 0.2 | M24: 1.9 | N24: 0.18 | O24: 0.34
K25: Apr | L25: 0.1 | M25: 3.8 | N25: 0.12 | O25: 0.22
K26: May | L26: 0.2 | M26: 1.2 | N26: 0.15 | O26: 0.41
K27: Jun | L27: 0.2 | M27: 4.5 | N27: 0.15 | O27: 0.28
K28: Jul | L28: 0.3 | M28: 4.4 | N28: 0.28 | O28: 0.97
K29: Aug | L29: 0.2 | M29: 2.8 | N29: 0.23 | O29: 0.44
K30: Sep | L30: 0.2 | M30: 3.5 | N30: 0.22 | O30: 0.36
K31: Oct | L31: 0.2 | M31: 2.2 | N31: 0.21 | O31: 1.15
K32: Nov | L32: 0.1 | M32: 3.4 | N32: 0.13 | O32: 0.23
K33: Dec | L33: 0.2 | M33: 1.6 | N33: 0.16 | O33: 0.22
K34: Annual | L34: =AVERAGE(L22:L33) -> 0.175 | M34: =MAX(M22:M33) -> 6 | N34: =AVERAGE(N22:N33) -> 0.1666666667 | O34: =MAX(O22:O33) -> 1.15
J36: =+A5 -> 2024 | K36: mg/Nm3 | L36: Monthly mean of half-hourly averages | M36: Highest half- hourly average | N36: Monthly mean of daily averages | O36: Highest daily average
J37: A3 | K37: Jan
K38: Feb
K39: Mar
K40: Apr
K41: May
K42: Jun
K43: Jul
K44: Aug
K45: Sep
K46: Oct
K47: Nov
A48: Comments : | K48: Dec
K49: Annual | L49: =AVERAGE(L37:L48) ->  | M49: =MAX(M37:M48) -> 0 | N49: =AVERAGE(N37:N48) ->  | O49: =MAX(O37:O48) -> 0
J51: =+A5 -> 2024 | K51: mg/Nm3 | L51: Monthly mean of half-hourly averages | M51: Highest half- hourly average | N51: Monthly mean of daily averages | O51: Highest daily average
J52: A4 | K52: Jan
K53: Feb
K54: Mar
K55: Apr
K56: May
K57: Jun
K58: Jul
K59: Aug
K60: Sep
K61: Oct
K62: Nov
K63: Dec
K64: Annual | L64: =AVERAGE(L52:L63) ->  | M64: =MAX(M52:M63) -> 0 | N64: =AVERAGE(N52:N63) ->  | O64: =MAX(O52:O63) -> 0
J66: =+A5 -> 2024 | K66: mg/Nm3 | L66: Monthly mean of half-hourly averages | M66: Highest half- hourly average | N66: Monthly mean of daily averages | O66: Highest daily average
J67: A5 | K67: Jan
K68: Feb
K69: Mar
K70: Apr
K71: May
K72: Jun
K73: Jul
K74: Aug
K75: Sep
K76: Oct
K77: Nov
K78: Dec
K79: Annual | L79: =AVERAGE(L67:L78) ->  | M79: =MAX(M67:M78) -> 0 | N79: =AVERAGE(N67:N78) ->  | O79: =MAX(O67:O78) -> 0

Sheet Particulates
A1: =+'Cover Page'!$B$29 -> Annual Performance Report 2024 | E1: =+'Cover Page'!$B$33 -> Kemsley Generating Station
A3: Monitoring of Particulate matter emissions | D3: Whole Installation | G3: See Notes in Cell Q3 | J3: =+A3 -> Monitoring of Particulate matter emissions | N3: Per Combustion Line
A5: =+'Cover Page'!C39 -> 2024 | B5: 1/2 Hourly Reference Periods | E5: Daily Reference Periods
A6: mg/Nm3 | B6: 1/2 hourly PM ELV | C6: Monthly mean of half-hourly averages | D6: Highest half- hourly average | E6: Daily PM ELV | F6: Monthly mean of daily averages | G6: Highest daily average | J6: =+A5 -> 2024 | K6: mg/Nm3 | L6: Monthly mean of half-hourly averages | M6: Highest half- hourly average | N6: Monthly mean of daily averages | O6: Highest daily average
A7: Jan | B7: 30 | C7: =AVERAGE(L7,L22) -> 0.15 | D7: =MAX(M7,M22) -> 4.2 | E7: 5 | F7: =AVERAGE(N7,N22) -> 0.13 | G7: =MAX(O7,O22) -> 1.09 | J7: A1 | K7: Jan | L7: 0.1 | M7: 0.1 | N7: 0.07 | O7: 0.08
A8: Feb | B8: 30 | C8: =AVERAGE(L8,L23) -> 0.15 | D8: =MAX(M8,M23) -> 5.4 | E8: 5 | F8: =AVERAGE(N8,N23) -> 0.16 | G8: =MAX(O8,O23) -> 0.6 | K8: Feb | L8: 0.2 | M8: 5.4 | N8: 0.18 | O8: 0.6
A9: Mar | B9: 30 | C9: 0.1 | D9: 0.5 | E9: 5 | F9: 0.115 | G9: 0.23 | K9: Mar | L9: 0.1 | M9: 0.5 | N9: 0.1 | O9: 0.18
A10: Apr | B10: 30 | C10: 0.15 | D10: 0.7 | E10: 5 | F10: 0.115 | G10: 0.3 | K10: Apr | L10: 0.1 | M10: 0.1 | N10: 0.07 | O10: 0.07
A11: May | B11: 30 | C11: 0.15 | D11: 1.2 | E11: 5 | F11: 0.18 | G11: 0.54 | K11: May | L11: 0.1 | M11: 0.2 | N11: 0.18 | O11: 0.1
A12: Jun | B12: 30 | C12: 0.15 | D12: 2.1 | E12: 5 | F12: 0.13 | G12: 0.7 | K12: Jun | L12: 0.1 | M12: 0.2 | N12: 0.08 | O12: 0.09
A13: Jul | B13: 30 | C13: 0.1 | D13: 0.3 | E13: 5 | F13: 0.085 | G13: 0.15 | K13: Jul | L13: 0.1 | M13: 0.2 | N13: 0.08 | O13: 0.09
A14: Aug | B14: 30 | C14: 0.1 | D14: 0.6 | E14: 5 | F14: 0.085 | G14: 0.22 | K14: Aug | L14: 0.1 | M14: 0.1 | N14: 0.08 | O14: 0.09
A15: Sep | B15: 30 | C15: 0.1 | D15: 0.1 | E15: 5 | F15: 0.085 | G15: 0.1 | K15: Sep | L15: 0.1 | M15: 0.1 | N15: 0.09 | O15: 0.1
A16: Oct | B16: 30 | C16: 0.1 | D16: 0.2 | E16: 5 | F16: 0.085 | G16: 0.12 | K16: Oct | L16: 0.1 | M16: 0.2 | N16: 0.08 | O16: 0.11
A17: Nov | B17: 30 | C17: 0.1 | D17: 0.2 | E17: 5 | F17: 0.09 | G17: 0.1 | K17: Nov | L17: 0.1 | M17: 0.2 | N17: 0.09 | O17: 0.1
A18: Dec | B18: 30 | C18: 0.1 | D18: 0.4 | E18: 5 | F18: 0.095 | G18: 0.15 | K18: Dec | L18: 0.1 | M18: 0.4 | N18: 0.1 | O18: 0.15
K19: Annual | L19: =AVERAGE(L7:L18) -> 0.1083333333 | M19: =MAX(M7:M18) -> 5.4 | N19: =AVERAGE(N7:N18) -> 0.1 | O19: =MAX(O7:O18) -> 0.6
J21: =+A5 -> 2024 | K21: mg/Nm3 | L21: Monthly mean of half-hourly averages | M21: Highest half- hourly average | N21: Monthly mean of daily averages | O21: Highest daily average
J22: A2 | K22: Jan | L22: 0.2 | M22: 4.2 | N22: 0.19 | O22: 1.09
K23: Feb | L23: 0.1 | M23: 3.4 | N23: 0.14 | O23: 0.3
K24: Mar | L24: 0.1 | M24: 0.4 | N24: 0.13 | O24: 0.23
K25: Apr | L25: 0.2 | M25: 0.7 | N25: 0.16 | O25: 0.3
K26: May | L26: 0.2 | M26: 1.2 | N26: 0.18 | O26: 0.54
K27: Jun | L27: 0.2 | M27: 2.1 | N27: 0.18 | O27: 0.7
K28: Jul | L28: 0.1 | M28: 0.3 | N28: 0.09 | O28: 0.15
K29: Aug | L29: 0.1 | M29: 0.6 | N29: 0.09 | O29: 0.22
K30: Sep | L30: 0.1 | M30: 0.1 | N30: 0.08 | O30: 0.09
K31: Oct | L31: 0.1 | M31: 0.2 | N31: 0.09 | O31: 0.12
K32: Nov | L32: 0.1 | M32: 0.1 | N32: 0.09 | O32: 0.1
K33: Dec | L33: 0.1 | M33: 0.1 | N33: 0.09 | O33: 0.09
K34: Annual | L34: =AVERAGE(L22:L33) -> 0.1333333333 | M34: =MAX(M22:M33) -> 4.2 | N34: =AVERAGE(N22:N33) -> 0.1258333333 | O34: =MAX(O22:O33) -> 1.09
J36: =+A5 -> 2024 | K36: mg/Nm3 | L36: Monthly mean of half-hourly averages | M36: Highest half- hourly average | N36: Monthly mean of daily averages | O36: Highest daily average
J37: A3 | K37: Jan
K38: Feb
K39: Mar
K40: Apr
K41: May
K42: Jun
K43: Jul
K44: Aug
K45: Sep
K46: Oct
K47: Nov
A48: Comments : | K48: Dec
K49: Annual | L49: =AVERAGE(L37:L48) ->  | M49: =MAX(M37:M48) -> 0 | N49: =AVERAGE(N37:N48) ->  | O49: =MAX(O37:O48) -> 0
J51: =+A5 -> 2024 | K51: mg/Nm3 | L51: Monthly mean of half-hourly averages | M51: Highest half- hourly average | N51: Monthly mean of daily averages | O51: Highest daily average
J52: A4 | K52: Jan
K53: Feb
K54: Mar
K55: Apr
K56: May
K57: Jun
K58: Jul
K59: Aug
K60: Sep
K61: Oct
K62: Nov
K63: Dec
K64: Annual | L64: =AVERAGE(L52:L63) ->  | M64: =MAX(M52:M63) -> 0 | N64: =AVERAGE(N52:N63) ->  | O64: =MAX(O52:O63) -> 0
J66: =+A5 -> 2024 | K66: mg/Nm3 | L66: Monthly mean of half-hourly averages | M66: Highest half- hourly average | N66: Monthly mean of daily averages | O66: Highest daily average
J67: A5 | K67: Jan
K68: Feb
K69: Mar
K70: Apr
K71: May
K72: Jun
K73: Jul
K74: Aug
K75: Sep
K76: Oct
K77: Nov
K78: Dec
K79: Annual | L79: =AVERAGE(L67:L78) ->  | M79: =MAX(M67:M78) -> 0 | N79: =AVERAGE(N67:N78) ->  | O79: =MAX(O67:O78) -> 0

Sheet CO 0.5 hourly
A1: =+'Cover Page'!$B$29 -> Annual Performance Report 2024 | E1: =+'Cover Page'!$B$33 -> Kemsley Generating Station
A3: Monitoring of Carbon Monoxide (half hourly) | D3: Whole Installation | G3: See Notes in Cell Q3 | J3: =+A3 -> Monitoring of Carbon Monoxide (half hourly) | N3: Per Combustion Line
A5: Please complete this tab for your plant if you have 1/2 hourly CO ELVs; otherwise, leave it blank and complete the CO 95% 10 min tab
A8: =+'Cover Page'!C39 -> 2024 | B8: 1/2 Hourly Reference Periods | E8: Daily Reference Periods
A9: mg/Nm3 | B9: 1/2 hourly CO ELV | C9: Monthly mean of half-hourly averages | D9: Highest half- hourly average | E9: Daily CO ELV | F9: Monthly mean of daily averages | G9: Highest daily average | J9: =+A8 -> 2024 | K9: mg/Nm3 | L9: Monthly mean of half-hourly averages | M9: Highest half- hourly average | N9: Monthly mean of daily averages | O9: Highest daily average
A10: Jan | B10: 100 | E10: 50 | J10: A1 | K10: Jan
A11: Feb | B11: =+B10 -> 100 | E11: =+E10 -> 50 | K11: Feb
A12: Mar | B12: =+B11 -> 100 | E12: =+E11 -> 50 | K12: Mar
A13: Apr | B13: 100 | E13: 50 | K13: Apr
A14: May | B14: 100 | E14: 50 | K14: May
A15: Jun | B15: 100 | E15: 50 | K15: Jun
A16: Jul | B16: 100 | E16: 50 | K16: Jul
A17: Aug | B17: 100 | E17: 50 | K17: Aug
A18: Sep | B18: 100 | E18: 50 | K18: Sep
A19: Oct | B19: 100 | E19: 50 | K19: Oct
A20: Nov | B20: 100 | E20: 50 | K20: Nov
A21: Dec | B21: 100 | E21: 50 | K21: Dec
K22: Annual | L22: =AVERAGE(L10:L21) ->  | M22: =MAX(M10:M21) -> 0 | N22: =AVERAGE(N10:N21) ->  | O22: =MAX(O10:O21) -> 0
J24: =+A8 -> 2024 | K24: mg/Nm3 | L24: Monthly mean of half-hourly averages | M24: Highest half- hourly average | N24: Monthly mean of daily averages | O24: Highest daily average
J25: A2 | K25: Jan
K26: Feb
K27: Mar
K28: Apr
K29: May
K30: Jun
K31: Jul
K32: Aug
K33: Sep
K34: Oct
K35: Nov
K36: Dec
K37: Annual | L37: =AVERAGE(L25:L36) ->  | M37: =MAX(M25:M36) -> 0 | N37: =AVERAGE(N25:N36) ->  | O37: =MAX(O25:O36) -> 0
J39: =+A8 -> 2024 | K39: mg/Nm3 | L39: Monthly mean of half-hourly averages | M39: Highest half- hourly average | N39: Monthly mean of daily averages | O39: Highest daily average
J40: A3 | K40: Jan
K41: Feb
K42: Mar
K43: Apr
K44: May
K45: Jun
K46: Jul
K47: Aug
K48: Sep
K49: Oct
K50: Nov
A51: Comments : | K51: Dec
K52: Annual | L52: =AVERAGE(L40:L51) ->  | M52: =MAX(M40:M51) -> 0 | N52: =AVERAGE(N40:N51) ->  | O52: =MAX(O40:O51) -> 0
J54: =+A8 -> 2024 | K54: mg/Nm3 | L54: Monthly mean of half-hourly averages | M54: Highest half- hourly average | N54: Monthly mean of daily averages | O54: Highest daily average
J55: A4 | K55: Jan
K56: Feb
K57: Mar
K58: Apr
K59: May
K60: Jun
K61: Jul
K62: Aug
K63: Sep
K64: Oct
K65: Nov
K66: Dec
K67: Annual | L67: =AVERAGE(L55:L66) ->  | M67: =MAX(M55:M66) -> 0 | N67: =AVERAGE(N55:N66) ->  | O67: =MAX(O55:O66) -> 0
J69: =+A8 -> 2024 | K69: mg/Nm3 | L69: Monthly mean of half-hourly averages | M69: Highest half- hourly average | N69: Monthly mean of daily averages | O69: Highest daily average
J70: A5 | K70: Jan
K71: Feb
K72: Mar
K73: Apr
K74: May
K75: Jun
K76: Jul
K77: Aug
K78: Sep
K79: Oct
K80: Nov
K81: Dec
K82: Annual | L82: =AVERAGE(L70:L81) ->  | M82: =MAX(M70:M81) -> 0 | N82: =AVERAGE(N70:N81) ->  | O82: =MAX(O70:O81) -> 0

Sheet CO 95% 10 min
A1: =+'Cover Page'!$B$29 -> Annual Performance Report 2024 | E1: =+'Cover Page'!$B$33 -> Kemsley Generating Station
A3: Monitoring of Carbon Monoxide (10-minute avg) | E3: Whole Installation | H3: See Notes in Cell S3 | J3: =+A3 -> Monitoring of Carbon Monoxide (10-minute avg) | O3: Per Combustion Line | Q3: Notes:
A5: Please complete this tab for your plant if you have 10-minute average CO ELVs; otherwise, leave it blank and complete the CO 0.5 hourly tab
A8: =+'Cover Page'!C39 -> 2024 | B8: 10-minute Reference Periods | F8: Daily Reference Periods
A9: mg/Nm3 | B9: 95%ile 10-min avg CO ELV | C9: Highest daily 95%ile 10-min average | D9: Monthly mean of 10-min averages | E9: Highest 10-min average | F9: Daily CO ELV | G9: Monthly mean of daily averages | H9: Highest daily average | K9: =+A8 -> 2024 | L9: mg/Nm3 | M9: Highest daily 95%ile 10-min average | N9: Monthly mean of 10-min averages | O9: Highest 10-min average | P9: Monthly mean of daily averages | Q9: Highest daily average
A10: Jan | B10: 150 | C10: =MAX(M10,M25) -> 4.8 | D10: =AVERAGE(N10,N25) -> 3.35 | E10: =MAX(O10,O25) -> 54.4 | F10: 50 | G10: =AVERAGE(P10,P25) -> 3.34 | H10: =MAX(Q10,Q25) -> 4.83 | K10: A1 | L10: Jan | M10: 4.2 | N10: 3.5 | O10: 40.4 | P10: 3.5 | Q10: 4.2
A11: Feb | B11: =+B10 -> 150 | C11: =MAX(M11,M26) -> 9 | D11: =AVERAGE(N11,N26) -> 3.4 | E11: =MAX(O11,O26) -> 287.6 | F11: =+F10 -> 50 | G11: =AVERAGE(P11,P26) -> 3.385 | H11: =MAX(Q11,Q26) -> 9.44 | L11: Feb | M11: 4.3 | N11: 3.5 | O11: 173.9 | P11: 3.52 | Q11: 9.44
A12: Mar | B12: =+B11 -> 150 | C12: 6.2 | D12: 3.3 | E12: 91.8 | F12: =+F11 -> 50 | G12: 3.315 | H12: 6.24 | L12: Mar | M12: 6.2 | N12: 3.8 | O12: 91.8 | P12: 3.8 | Q12: 6.24
A13: Apr | B13: 150 | C13: 13.3 | D13: 4 | E13: 133.6 | F13: 50 | G13: 3.995 | H13: 13.34 | L13: Apr | M13: 6 | N13: 3.8 | O13: 133.6 | P13: 3.8 | Q13: 6.01
A14: May | B14: 150 | C14: 6.1 | D14: 3.1 | E14: 124.5 | F14: 50 | G14: 2.78 | H14: 6.08 | L14: May | M14: 6.1 | N14: 3.4 | O14: 124.5 | P14: 2.78 | Q14: 6.08
A15: Jun | B15: 150 | C15: =MAX(M15,M30) -> 6.7 | D15: 3.5 | E15: 138.9 | F15: 50 | G15: 3.5 | H15: 6.65 | L15: Jun | M15: 6.7 | N15: 3.7 | O15: 106.9 | P15: 3.69 | Q15: 6.65
A16: Jul | B16: 150 | C16: 9.6 | D16: 3.5 | E16: 236 | F16: 50 | G16: 3.48 | H16: 9.64 | L16: Jul | M16: 9.6 | N16: 3.8 | O16: 236 | P16: 3.8 | Q16: 9.64
A17: Aug | B17: 150 | C17: 9.9 | D17: 3.8 | E17: 123.2 | F17: 50 | G17: 3.8 | H17: 9.95 | L17: Aug | M17: 8.4 | N17: 4.1 | O17: 107.6 | P17: 4.08 | Q17: 8.37
A18: Sep | B18: 150 | C18: 7 | D18: 3.45 | E18: 151 | F18: 50 | G18: 3.44 | H18: 7.04 | L18: Sep | M18: 6.4 | N18: 3.7 | O18: 93.8 | P18: 3.69 | Q18: 6.42
A19: Oct | B19: 150 | C19: =MAX(M19,M34) -> 5 | D19: 3 | E19: 87.8 | F19: 50 | G19: 3.01 | H19: 5.01 | L19: Oct | M19: 5 | N19: 3.6 | O19: 87.8 | P19: 3.62 | Q19: 5.01
A20: Nov | B20: 150 | C20: 7.7 | D20: 3 | E20: 93.9 | F20: 50 | G20: 2.975 | H20: 7.67 | L20: Nov | M20: 7.7 | N20: 3.8 | O20: 93.9 | P20: 3.76 | Q20: 7.67
A21: Dec | B21: 150 | C21: =MAX(M21,M36) -> 5.7 | D21: 2.75 | E21: 162.7 | F21: 50 | G21: 2.755 | H21: 5.7 | L21: Dec | M21: 4.2 | N21: 3.4 | O21: 52.6 | P21: 3.41 | Q21: 4.22
L22: Annual | M22: =AVERAGE(M10:M21) -> 6.233333333 | N22: =AVERAGE(N10:N21) -> 3.675 | O22: =MAX(O10:O21) -> 236 | P22: =AVERAGE(P10:P21) -> 3.620833333 | Q22: =MAX(Q10:Q21) -> 9.64
K24: =+A8 -> 2024 | L24: mg/Nm3 | M24: Highest daily 95%ile 10-min average | N24: Monthly mean of 10-min averages | O24: Highest 10-min average | P24: Monthly mean of daily averages | Q24: Highest daily average
K25: A2 | L25: Jan | M25: 4.8 | N25: 3.2 | O25: 54.4 | P25: 3.18 | Q25: 4.83
L26: Feb | M26: 9 | N26: 3.3 | O26: 287.6 | P26: 3.25 | Q26: 8.95
L27: Mar | M27: 4.1 | N27: 2.8 | O27: 42.8 | P27: 2.83 | Q27: 4.13
L28: Apr | M28: 13.3 | N28: 4.2 | O28: 123.7 | P28: 4.19 | Q28: 13.34
L29: May | M29: 5 | N29: 2.8 | O29: 76 | P29: 2.78 | Q29: 5.03
L30: Jun | M30: 6.6 | N30: 3.3 | O30: 138.9 | P30: 3.31 | Q30: 6.56
L31: Jul | M31: 6.5 | N31: 3.2 | O31: 123.7 | P31: 3.16 | Q31: 8.77
L32: Aug | M32: 9.9 | N32: 3.5 | O32: 123.2 | P32: 3.52 | Q32: 9.95
L33: Sep | M33: 7 | N33: 3.2 | O33: 151 | P33: 3.19 | Q33: 7.04
L34: Oct | M34: 4.3 | N34: 2.4 | O34: 85.2 | P34: 2.4 | Q34: 4.35
L35: Nov | M35: 3 | N35: 2.2 | O35: 52.6 | P35: 2.19 | Q35: 3
L36: Dec | M36: 5.7 | N36: 2.1 | O36: 162.7 | P36: 2.1 | Q36: 5.7
L37: Annual | M37: =AVERAGE(M25:M36) -> 6.6 | N37: =AVERAGE(N25:N36) -> 3.016666667 | O37: =MAX(O25:O36) -> 287.6 | P37: =AVERAGE(P25:P36) -> 3.008333333 | Q37: =MAX(Q25:Q36) -> 13.34
K39: =+A8 -> 2024 | L39: mg/Nm3 | M39: Highest daily 95%ile 10-min average | N39: Monthly mean of 10-min averages | O39: Highest 10-min average | P39: Monthly mean of daily averages | Q39: Highest daily average
K40: A3 | L40: Jan
L41: Feb
L42: Mar
L43: Apr
L44: May
L45: Jun
L46: Jul
L47: Aug
L48: Sep
L49: Oct
L50: Nov
A51: Comments : | L51: Dec
A52: Environment Agency explanatory note: The 10-minute average ELV is based on the “95th percentile”. In this case this means that 95% of the 10 minute averages in the relevant 24-hour period (i.e. 137) must be below 150 mg/Nm3, and 5% (i.e. 7) are allowed to be any value above 150 mg/Nm3. Whilst we expect operators to minimise CO emissions at all times, it is perfectly acceptable for the value of the maximum 10-minute average to be above 150 mg/Nm3, provided the 95th percentile ELV has been met for that period. | L52: Annual | M52: =AVERAGE(M40:M51) ->  | O52: =MAX(O40:O51) -> 0 | P52: =AVERAGE(P40:P51) ->  | Q52: =MAX(Q40:Q51) -> 0
K54: =+A8 -> 2024 | L54: mg/Nm3 | M54: Highest daily 95%ile 10-min average | N54: Monthly mean of 10-min averages | O54: Highest 10-min average | P54: Monthly mean of daily averages | Q54: Highest daily average
K55: A4 | L55: Jan
L56: Feb
L57: Mar
L58: Apr
L59: May
L60: Jun
L61: Jul
L62: Aug
L63: Sep
L64: Oct
L65: Nov
L66: Dec
L67: Annual | M67: =AVERAGE(M55:M66) ->  | O67: =MAX(O55:O66) -> 0 | P67: =AVERAGE(P55:P66) ->  | Q67: =MAX(Q55:Q66) -> 0
K69: =+A8 -> 2024 | L69: mg/Nm3 | M69: 95%ile 10-min avg maximum | N69: Monthly CO 10-min avg mean | O69: 10-min avg maximum | P69: Monthly daily mean | Q69: Monthly daily maximum
K70: A5 | L70: Jan
L71: Feb
L72: Mar
L73: Apr
L74: May
L75: Jun
L76: Jul
L77: Aug
L78: Sep
L79: Oct
L80: Nov
L81: Dec
L82: Annual | M82: =AVERAGE(M70:M81) ->  | O82: =MAX(O70:O81) -> 0 | P82: =AVERAGE(P70:P81) ->  | Q82: =MAX(Q70:Q81) -> 0

Sheet NH3
A1: =+'Cover Page'!$B$29 -> Annual Performance Report 2024 | E1: =+'Cover Page'!$B$33 -> Kemsley Generating Station
A3: Monitoring of Ammnonia emissions | D3: Whole Installation | G3: See Notes in Cell Q3 | J3: =+A3 -> Monitoring of Ammnonia emissions | N3: Per Combustion Line
A5: =+'Cover Page'!C39 -> 2024 | B5: 1/2 Hourly Reference Periods | E5: Daily Reference Periods
A6: mg/Nm3 | B6: 1/2 hourly NH3 ELV | C6: Monthly mean of half-hourly averages | D6: Highest half- hourly average | E6: Daily NH3 ELV | F6: Monthly mean of daily averages | G6: Highest daily average | J6: =+A5 -> 2024 | K6: mg/Nm3 | L6: Monthly mean of half-hourly averages | M6: Highest half- hourly average | N6: Monthly mean of daily averages | O6: Highest daily average
A7: Jan | B7: None | C7: =AVERAGE(L7,L22) -> 0.35 | D7: =MAX(M7,M22) -> 2 | E7: 15 | F7: =AVERAGE(N7,N22) -> 0.32 | G7: =MAX(O7,O22) -> 1.07 | J7: A1 | K7: Jan | L7: 0.6 | M7: 2 | N7: 0.56 | O7: 1.07
A8: Feb | B8: =+B7 -> None | C8: =AVERAGE(L8,L23) -> 0.7 | D8: =MAX(M8,M23) -> 67.3 | E8: 15 | F8: =AVERAGE(N8,N23) -> 0.685 | G8: =MAX(O8,O23) -> 5.66 | K8: Feb | L8: 1.3 | M8: 67.3 | N8: 1.29 | O8: 5.66
A9: Mar | B9: =+B8 -> None | C9: =AVERAGE(L9,L24) -> 0.5 | D9: 1.9 | E9: 15 | F9: 0.49 | G9: =MAX(O9,O24) -> 1.21 | K9: Mar | L9: 0.8 | M9: 1.9 | N9: 0.83 | O9: 1.21
A10: Apr | B10: None | C10: 0.35 | D10: =MAX(M10,M25) -> 1.5 | E10: 15 | F10: =AVERAGE(N10,N25) -> 0.32 | G10: 0.88 | K10: Apr | L10: 0.6 | M10: 1.5 | N10: 0.57 | O10: 0.88
A11: May | B11: None | C11: 0.25 | D11: =MAX(M11,M26) -> 2 | E11: 15 | F11: 0.09 | G11: 1.46 | K11: May | L11: 0.4 | M11: 2 | N11: 0.09 | O11: 1.46
A12: Jun | B12: None | C12: =AVERAGE(L12,L27) -> 0.2 | D12: 1.7 | E12: 15 | F12: 0.195 | G12: 0.89 | K12: Jun | L12: 0.3 | M12: 1.7 | N12: 0.34 | O12: 0.89
A13: Jul | B13: None | C13: 0.2 | D13: 4.4 | E13: 15 | F13: 0.22 | G13: 0.94 | K13: Jul | L13: 0.3 | M13: 1.8 | N13: 0.33 | O13: 0.65
A14: Aug | B14: None | C14: 0.3 | D14: 1.4 | E14: 15 | F14: 0.275 | G14: 0.66 | K14: Aug | L14: 0.5 | M14: 1.4 | N14: 0.49 | O14: 0.66
A15: Sep | B15: None | C15: 0.5 | D15: 3.7 | E15: 15 | F15: 0.505 | G15: 1.45 | K15: Sep | L15: 0.9 | M15: 3.7 | N15: 0.94 | O15: 1.45
A16: Oct | B16: None | C16: 0.6 | D16: 6.5 | E16: 15 | F16: 0.615 | G16: 2.46 | K16: Oct | L16: 1 | M16: 6.5 | N16: 1.03 | O16: 2.46
A17: Nov | B17: None | C17: 0.2 | D17: 2.5 | E17: 15 | F17: 0.2 | G17: 0.63 | K17: Nov | L17: 0.3 | M17: 2.5 | N17: 0.31 | O17: 0.63
A18: Dec | B18: None | C18: =AVERAGE(L18,L33) -> 0.3 | D18: =MAX(M18,M33) -> 3.4 | E18: 15 | F18: 0.295 | G18: 1.23 | K18: Dec | L18: 0.5 | M18: 3.4 | N18: 0.47 | O18: 1.23
K19: Annual | L19: =AVERAGE(L7:L18) -> 0.625 | M19: =MAX(M7:M18) -> 67.3 | N19: =AVERAGE(N7:N18) -> 0.6041666667 | O19: =MAX(O7:O18) -> 5.66
J21: =+A5 -> 2024 | K21: mg/Nm3 | L21: Monthly mean of half-hourly averages | M21: Highest half- hourly average | N21: Monthly mean of daily averages | O21: Highest daily average
J22: A2 | K22: Jan | L22: 0.1 | M22: 0.4 | N22: 0.08 | O22: 0.16
K23: Feb | L23: 0.1 | M23: 0.7 | N23: 0.08 | O23: 0.14
K24: Mar | L24: 0.2 | M24: 1 | N24: 0.15 | O24: 0.34
K25: Apr | L25: 0.1 | M25: 0.9 | N25: 0.07 | O25: 0.25
K26: May | L26: 0.1 | M26: 0.4 | N26: 0.09 | O26: 0.19
K27: Jun | L27: 0.1 | M27: 0.2 | N27: 0.05 | O27: 0.11
K28: Jul | L28: 0.1 | M28: 4.4 | N28: 0.11 | O28: 0.94
K29: Aug | L29: 0.1 | M29: 0.4 | N29: 0.06 | O29: 0.15
K30: Sep | L30: 0.1 | M30: 0.5 | N30: 0.07 | O30: 0.14
K31: Oct | L31: 0.2 | M31: 3.1 | N31: 0.2 | O31: 1.8
K32: Nov | L32: 0.1 | M32: 0.4 | N32: 0.09 | O32: 0.17
K33: Dec | L33: 0.1 | M33: 1 | N33: 0.12 | O33: 0.22
K34: Annual | L34: =AVERAGE(L22:L33) -> 0.1166666667 | M34: =MAX(M22:M33) -> 4.4 | N34: =AVERAGE(N22:N33) -> 0.0975 | O34: =MAX(O22:O33) -> 1.8
J36: =+A5 -> 2024 | K36: mg/Nm3 | L36: Monthly mean of half-hourly averages | M36: Highest half- hourly average | N36: Monthly mean of daily averages | O36: Highest daily average
J37: A3 | K37: Jan
K38: Feb
K39: Mar
K40: Apr
K41: May
K42: Jun
K43: Jul
K44: Aug
K45: Sep
K46: Oct
K47: Nov
A48: Comments : | K48: Dec
A49: An indicated ELV value of zero in the table above means that no ammonia limit is/was set in the permit. | K49: Annual | L49: =AVERAGE(L37:L48) ->  | M49: =MAX(M37:M48) -> 0 | N49: =AVERAGE(N37:N48) ->  | O49: =MAX(O37:O48) -> 0
J51: =+A5 -> 2024 | K51: mg/Nm3 | L51: Monthly mean of half-hourly averages | M51: Highest half- hourly average | N51: Monthly mean of daily averages | O51: Highest daily average
J52: A4 | K52: Jan
K53: Feb
K54: Mar
K55: Apr
K56: May
K57: Jun
K58: Jul
K59: Aug
K60: Sep
K61: Oct
K62: Nov
K63: Dec
K64: Annual | L64: =AVERAGE(L52:L63) ->  | M64: =MAX(M52:M63) -> 0 | N64: =AVERAGE(N52:N63) ->  | O64: =MAX(O52:O63) -> 0
J66: =+A5 -> 2024 | K66: mg/Nm3 | L66: Monthly mean of half-hourly averages | M66: Highest half- hourly average | N66: Monthly mean of daily averages | O66: Highest daily average
J67: A5 | K67: Jan
K68: Feb
K69: Mar
K70: Apr
K71: May
K72: Jun
K73: Jul
K74: Aug
K75: Sep
K76: Oct
K77: Nov
K78: Dec
K79: Annual | L79: =AVERAGE(L67:L78) ->  | M79: =MAX(M67:M78) -> 0 | N79: =AVERAGE(N67:N78) ->  | O79: =MAX(O67:O78) -> 0

Sheet Template changes log
A1: Log of changes to template (Environment Agency use only)
A3: Date | B3: Description of change | C3: New version number and date
A4: 2024-01-16 | B4: Air (periodic) tab: corrected default O2 reference from 6 to 11% | C4: Version 23.5a (for incinerators) - 16/01/2024
A5: 2024-09-23 | B5: Air (periodic) tab: corrected symbol for Thallium to Tl
A6: 2024-09-23 | B6: Air (periodic) tab: removed last year's references to different emission limit values applying from 03/12/23 and updated all relevant ELVs
A7: 2024-09-23 | B7: Tabs for continuously monitored pollutants (HCl, SO2 etc.): changed terminology in table headings to improve clarity
A8: 2024-09-23 | B8: Tabs for continuously monitored pollutants (HCl, SO2 etc.): removed last year's references to different emission limit values applying from 03/12/23 and updated all relevant ELVs
A9: 2024-09-23 | B9: Perf 1 tab: updated formula for water usage to report m3 rather than litres and corrected error with formula copying operator name
A10: 2024-09-23 | B10: Operational Summary tab: table added on start-up's and shut-downs
A11: 2024-09-23 | B11: Operational Summary tab: table added on dioxins and mercury protocols
A12: 2024-09-23 | B12: Operational Summary tab: table added on AST, QAL 2 and calibration functions
A13: 2024-09-23 | B13: CO2 N2O tab: various changes made to notes to reflect the fact that most plants should now have calibrated CEMS and flow meters + some have C14 samplers and more up to date industry data | C13: Version 24a (for incinerators) - 23/09/24
A14: 2024-01-08 | B14: CO2 N2O tab: Changed the N2O CO2 equivalence factor from 298 to 265 in line with recently updated government greenhouse gas figures: https://www.gov.uk/government/publications/greenhouse-gas-reporting-conversion-factors-2024
A15: 2024-01-08 | B15: CO2 N2O tab: Added an additional requirement for municipal EfW plants to state the yearly average biogenic percentage of the waste by mass, and reference to a document which sets out a methodology for calculating NCV of waste from the results of C14 sampling.
A16: 2024-01-08 | B16: Permit Compliance tab: Two additional columns added + explanatory notes to the table entitled "Summary of non-compliances under the permit" to allow CCS scores to be stated where relevant.
A17: 2024-01-08 | B17: Residue Quality tab: Note added explaining application of TOC and LOI limits and asking operators to report both metrics where measured. | C17: Version 24.1a (for incinerators) - 08/11/24

Sheet Sheet1
